Workbook

Sheet Start
B2: Preisbildung im Monopol
B4: Darstellung der Funktionen | F4: aX3 | G4: bX2 | H4: cx | I4: d | J4: d/x
D5: Kostenfunktion | F5: 2 | G5: -20 | H5: 250 | I5: 200
D6: Preis-Absatz-Funktion | H6: -100 | I6: 800
B8: Funktionen werden tabellarisch dargestellt. In die Zellen werden nur die Faktoren eingetragen. Die Spaltenüberschrift
B9: definiert jeweils den Exponenten.
B10: Die oben dargestellte Kostenfunktion lautet also: K = 2x3 - 20x2 + 250x + 200; Die PAF lautet: p = -100x + 800
B11: (Excel bietet die umständliche Möglichkeit zur Eingabe der Funktionen mit Hochzahlen. Bei der gewählten Darstellungsweise müssen nur die
B12: jeweiligen Faktoren geändert werden, um mit den Funktionen rechnen zu können.)
E14: Eingabe der Funktionen und Ergebnisauswertung
B18: In allen Fällen wird die Cournotsche Menge graphisch/tabellarisch (100 x-Werte) und analytisch ermittel und die Abweichung von beiden Lösungen berechnet. Die Preis-Absatz-Funktion hat in allen Fällen die Form p = - cx + d. (Die allgemein übliche Form p=a-bx wird dabei an die hier verwendete Darstellungsweise angepasst. Erlösfunktion: E = - cx2 + dx) Die Cournotsche Menge kann jeweils als ganze Zahl (Stückproduktion) oder als Dezimalzahl (Produktionsmenge in Kilogramm, Metern oder Litern) angezeigt werden.

Sheet Kontrolle
B2: Preisbildung im Monopol
B4: Funktionen | I4: Erlös | K4: =IF(AND(D6="",E6=""),BerechnungLin!J10,IF(Kontrolle!D6="",BerechnungQua!J10,BerechnungKub!J10)) -> 1582.485172
D5: aX3 | E5: bX2 | F5: cx | G5: d | H5: d/x | I5: Gesamtkosten | K5: =IF(AND(D6="",E6=""),BerechnungLin!K10,IF(Kontrolle!D6="",BerechnungQua!K10,BerechnungKub!K10)) -> 672.5623717
B6: Gesamtkosten | D6: 2 | E6: -20 | F6: 150 | G6: 300 | I6: variable Gesamtkosten | K6: =Kontrolle!K5-Kontrolle!G6 -> 372.5623717
B7: Preis-Absatz-Funktion | F7: -100 | G7: 800 | I7: fixe Gesamtkosten | K7: =G6 -> 300
B8: variable Gesamtkosten | D8: =D6 -> 2 | E8: =E6 -> -20 | F8: =F6 -> 150 | I8: Stückkosten | K8: =IF(AND(D6="",E6=""),BerechnungLin!G12,IF(Kontrolle!D6="",BerechnungQua!G12,BerechnungKub!G12)) -> 187.7882801
B9: Stückkosten | E9: =D6 -> 2 | F9: =E6 -> -20 | G9: =F6 -> 150 | H9: =G6 -> 300 | I9: variable Stückkosten | K9: =IF(AND(D6="",E6=""),BerechnungLin!H12,IF(Kontrolle!D6="",BerechnungQua!H12,BerechnungKub!H12)) -> 104.0243254
B10: variable Stückkosten | E10: =D6 -> 2 | F10: =F9 -> -20 | G10: =F6 -> 150 | I10: fixe Stückkosten | K10: =BerechnungKub!I12 -> 300
B11: Grenzkosten | E11: =3*D6 -> 6 | F11: =2*E6 -> -40 | G11: =F6 -> 150 | I11: Grenzkosten | K11: =IF(AND(D6="",E6=""),BerechnungLin!K12,IF(Kontrolle!D6="",BerechnungQua!K12,BerechnungKub!K12)) -> 83.70283204
B12: Erlös | E12: =F7 -> -100 | F12: =G7 -> 800 | I12: Absatzgrenze (Xmax) | K12: =(G7/F7)*-1 -> 8
B13: Grenzerlös | F13: =2*E12 -> -200 | G13: =F12 -> 800
B15: Geben Sie nach Klick auf "Eingabe" die Kostenfunktion und die Preis-Absatz-Funktion ein. Oder kopieren Sie Beispielfunktionen in die entsprechenden Felder.
B19: Extrempunkte | D19: €
B20: Gewinnmaximum | D20: =IF(AND(D6="",E6=""),BerechnungLin!I10,IF(Kontrolle!D6="",BerechnungQua!I10,BerechnungKub!I10)) -> 909.9228001 | E20: größter Gesamtgewinn; größte Differenz zwischen Erlös und Kosten
B21: Courtnotscher Punkt | E21: Die Cournotsche Menge ergibt sich aus dem Schnittpunkt zwischen Grenzkosten und Grenzerlös. Eingesetzt in die entsprechende Preis-Absatz-Funktion wird der gewinnmaximale Preis ermittelt.
B22: Preis | D22: =IF(AND(D6="",E6=""),BerechnungLin!H10,IF(Kontrolle!D6="",BerechnungQua!H10,BerechnungKub!H10)) -> 441.8507207
B23: Menge | D23: =IF(AND(D6="",E6=""),BerechnungLin!G10,IF(D6="",BerechnungQua!G10,BerechnungKub!$G$10)) -> 3.581492793
B25: Plausibilitätskontrolle | E25: Im betriebswirtschaftlichen Unterricht ist es eine Herausforderung, harmonisierende Kosten- und Preis-Absatz-Funktionen zu finden. Wenn diese Funktionen nicht harmonieren, erhalten Sie für die wichtigsten Abweichungsgründe einen Hinweis. Gründe könnten z.B. negative variable Stück- oder Grenzkosten, oder nicht eindeutig definierte Cournotpunkte sein. (Es sind nicht alle Abweichungsgründe erfasst.) Bei kubischen Kostenfunktionen der Form ax3-bx2+cx+d müssen Sie auf der Seite 'kubische Kostenfunktion' de Berechnung der Cournotmenge durch Klick auf den Button 'Cornotsche Menge' aktivieren. Andernfalls wird die Cournotmenge nicht korrekt angezeigt, und die Plausibilitätskontrolle arbeitet nicht korrekt.
B26: =IF(OR(BerechnungKub!F116<=0,Kontrolle!G11>Kontrolle!G13,BerechnungKub!H116<=0),"keine Funktionsharmonie!","Funktionen harmonieren") -> Funktionen harmonieren
B27: =IF(BerechnungKub!F116<=0,"negative variable Stückkosten",IF(G11>G13,"Cournotpunkt nich eindeutig definiert'",IF(BerechnungKub!H116<=0,"negative Grenzkosten",""))) -> 
B29: Berechnungen
D32: K = cx + d | G32: K = bx2 + cx + d | J32: K = ax3 - bx2 + cx + d
B33: Die anlaytischen Berechnungen unterscheiden sich bei linearen, quadratischen und kubischen Funktionen und werden daher in getrennten Tabellen durchgeführt. | G33: Die Kostenfunktion besteht aus steigenden variablen Stückkosten und konstanten gesamten Fixkosten (d). Die Grenzkosten steigen linear. | J33: Die Kostenfunktion besteht aus parabelförmig verlaufenden variablen Stückkosten und konstanten gesamten Fixkosten (d). Die Grenzkosten verlaufen parabelförmig. Die Cournotsche Menge kann durch eine Näherungslösung (Variation der Menge um ganze Zahlen) oder mit der Zielwertsuche von Excel ermittelt werden.
D34: Die Kostenfunktion besteht aus konstanten variablen Stückkosten und Fixkosten (d). Die Grenzkosten entsprechen den konstanten variablen Stückkosten.

Sheet BerechnungLin
B1: aX3 | C1: bX2 | D1: cx | E1: d | F1: d/x | G1: Ausgabewerte | N1: Berechnung der Cournotschen Menge (lineare Kostenfunktion)
A2: K= | B2: =Kontrolle!D6 -> 2 | C2: =Kontrolle!E6 -> -20 | D2: =Kontrolle!F6 -> 150 | E2: =Kontrolle!G6 -> 300 | G2: Gewinnmaximum tabellarisch | J2: Gmax | K2: =MAX(I15:I115) -> 909.888
A3: Kv= | B3: =Kontrolle!D8 -> 2 | C3: =Kontrolle!E8 -> -20 | D3: =Kontrolle!F8 -> 150 | J3: XGmax | K3: =VLOOKUP(K2,I15:N115,5,FALSE) -> 3.6 | N3: K = cx + d
A4: Kf= | D4: =D2 -> 150 | J4: PGmax | K4: =VLOOKUP(K2,I15:N115,4,FALSE) -> 440 | N4: =IF(AND(B9=0,C9=0),(E10-E9)/(D10*-1),"") ->  | P4: TRUE
A5: E1= | C5: =Kontrolle!E12 -> -100 | D5: =Kontrolle!F12 -> 800 | G5: Abweichungen der tabellarischen von der analystischen | K5: =(100%*(K2-I10))/100 -> 
A6: k= | C6: =Kontrolle!E9 -> 2 | D6: =Kontrolle!F9 -> -20 | E6: =D2 -> 150 | F6: =Kontrolle!H9 -> 300 | G6: Gewinnermittlung. (analytischer Gewinn = 100%)
A7: kv= | C7: =Kontrolle!E10 -> 2 | D7: =Kontrolle!F10 -> -20 | E7: =Kontrolle!G10 -> 150 | G7: Gewinnmaximum analytisch / Cournotscher Punkt
A8: kf= | F8: =E2 -> 300
A9: K' | C9: =Kontrolle!E11 -> 6 | D9: =Kontrolle!F11 -> -40 | E9: =Kontrolle!G11 -> 150 | G9: XGmax | H9: PGmax | I9: Gmax | J9: E | K9: K | N9: Aktivieren Sie das Kontrollkästchen, wenn die Cournotsche Menge in ganzen Zahlen angegeben werden soll. (G10)
A10: E' | D10: =Kontrolle!F13 -> -200 | E10: =Kontrolle!G13 -> 800 | G10: =IF(P4=TRUE,ROUND(N4,0),N4) ->  | H10: =(G10*D11)+E11 ->  | I10: =J10-K10 ->  | J10: =G10*H10 ->  | K10: =(B2*(G10*G10*G10))+(C2*(G10*G10))+(D2*G10)+E2 -> 
A11: PAF | D11: =Kontrolle!F7 -> -100 | E11: =Kontrolle!G7 -> 800 | G11: k | H11: kv | I11: kf | J11: E' | K11: K'
A12: Xmax | B12: =Kontrolle!K12 -> 8 | G12: =(C6*(G10*G10))+(D6*(G10))+(E6)+(F6/G10) ->  | H12: =(C7*(G10*G10))+(D7*G10)+E7 ->  | I12: =F8 -> 300 | J12: =(D10*G10)+E10 ->  | K12: =(C9*(G10*G10))+(D9*G10)+E9 -> 
G13: =N4 ->  | H13: =(G13*D11)+E11 ->  | I13: =J13-K13 ->  | J13: =G13*H13 ->  | K13: =(D2*G13)+E2 -> 
A14: X | B14: K | C14: K+Gmax | D14: Kf | E14: k | F14: kv | G14: kf | H14: K' | I14: E-K | J14: E | K14: E' | L14: PAF1 | M14: X | N14: Berechnung bei linearer Kostenfunktion (K=ax+b)
A15: 0 | B15: =($B$2*(A15*A15*A15))+($C$2*(A15*A15))+($D$2*A15)+($E$2) -> 300 | C15: =BerechnungLin!B15+BerechnungLin!$I$10 ->  | D15: =$E$2 -> 300 | I15: =J15-B15 -> -300 | J15: =($C$5*(A15*A15))+($D$5*A15) -> 0 | K15: =($D$10*A15)+$E$10 -> 800 | L15: =($D$11*A15)+$E$11 -> 800 | M15: =A15 -> 0
A16: =$B$12/100 -> 0.08 | B16: =($B$2*(A16*A16*A16))+($C$2*(A16*A16))+($D$2*A16)+($E$2) -> 311.873024 | C16: =BerechnungLin!B16+BerechnungLin!$I$10 ->  | D16: =$E$2 -> 300 | E16: =B16/A16 -> 3898.4128 | F16: =$E$7 -> 150 | G16: =$F$6/A16 -> 3750 | H16: =($C$9*(A16*A16))+($D$9*(A16))+$E$9 -> 146.8384 | I16: -248.513024 | J16: =($C$5*(A16*A16))+($D$5*A16) -> 63.36 | K16: =($D$10*A16)+$E$10 -> 784 | L16: =($D$11*A16)+$E$11 -> 792 | M16: =A16 -> 0.08
A17: =A16+$A$16 -> 0.16 | B17: =($B$2*(A17*A17*A17))+($C$2*(A17*A17))+($D$2*A17)+($E$2) -> 323.496192 | C17: =BerechnungLin!B17+BerechnungLin!$I$10 ->  | D17: 300 | E17: 2021.8512 | F17: =$E$7 -> 150 | G17: 1875 | H17: =($C$9*(A17*A17))+($D$9*(A17))+$E$9 -> 143.7536 | I17: -198.056192 | J17: 125.44 | K17: 768 | L17: 784 | M17: 0.16
A18: =A17+$A$16 -> 0.24 | B18: 334.875648 | C18: =BerechnungLin!B18+BerechnungLin!$I$10 ->  | D18: 300 | E18: 1395.3152 | F18: 150 | G18: 1250 | H18: 140.7456 | I18: -148.635648 | J18: 186.24 | K18: 752 | L18: 776 | M18: 0.24
A19: =A18+$A$16 -> 0.32 | B19: 346.017536 | C19: =BerechnungLin!B19+BerechnungLin!$I$10 ->  | D19: 300 | E19: 1081.3048 | F19: 150 | G19: 937.5 | H19: 137.8144 | I19: -100.257536 | J19: 245.76 | K19: 736 | L19: 768 | M19: 0.32
A20: 0.4 | B20: 356.928 | C20: =BerechnungLin!B20+BerechnungLin!$I$10 ->  | D20: 300 | E20: 892.32 | F20: 150 | G20: 750 | H20: 134.96 | I20: -52.928 | J20: 304 | K20: 720 | L20: 760 | M20: 0.4
A21: 0.48 | B21: 367.613184 | C21: =BerechnungLin!B21+BerechnungLin!$I$10 ->  | D21: 300 | E21: 765.8608 | F21: 150 | G21: 625 | H21: 132.1824 | I21: -6.653184 | J21: 360.96 | K21: 704 | L21: 752 | M21: 0.48
A22: 0.56 | B22: 378.079232 | C22: =BerechnungLin!B22+BerechnungLin!$I$10 ->  | D22: 300 | E22: 675.1414857 | F22: 150 | G22: 535.7142857 | H22: 129.4816 | I22: 38.560768 | J22: 416.64 | K22: 688 | L22: 744 | M22: 0.56
A23: 0.64 | B23: 388.332288 | C23: =BerechnungLin!B23+BerechnungLin!$I$10 ->  | D23: 300 | E23: 606.7692 | F23: 150 | G23: 468.75 | H23: 126.8576 | I23: 82.707712 | J23: 471.04 | K23: 672 | L23: 736 | M23: 0.64
A24: 0.72 | B24: 398.378496 | C24: =BerechnungLin!B24+BerechnungLin!$I$10 ->  | D24: 300 | E24: 553.3034667 | F24: 150 | G24: 416.6666667 | H24: 124.3104 | I24: 125.781504 | J24: 524.16 | K24: 656 | L24: 728 | M24: 0.72
A25: 0.8 | B25: 408.224 | C25: =BerechnungLin!B25+BerechnungLin!$I$10 ->  | D25: 300 | E25: 510.28 | F25: 150 | G25: 375 | H25: 121.84 | I25: 167.776 | J25: 576 | K25: 640 | L25: 720 | M25: 0.8 | R25: 5 | S25: 12
A26: 0.88 | B26: 417.874944 | C26: =BerechnungLin!B26+BerechnungLin!$I$10 ->  | D26: 300 | E26: 474.8578909 | F26: 150 | G26: 340.9090909 | H26: 119.4464 | I26: 208.685056 | J26: 626.56 | K26: 624 | L26: 712 | M26: 0.88
A27: 0.96 | B27: 427.337472 | C27: =BerechnungLin!B27+BerechnungLin!$I$10 ->  | D27: 300 | E27: 445.1432 | F27: 150 | G27: 312.5 | H27: 117.1296 | I27: 248.502528 | J27: 675.84 | K27: 608 | L27: 704 | M27: 0.96 | R27: =(($D$10*$R$25)+($D$9*-1*$R$25)+$E$10-$E$9)/$C$9 -> -25 | S27: =(($D$10*$S$25)+($D$9*-1*$S$25)+$E$10-$E$9)/$C$9 -> -211.6666667
A28: 1.04 | B28: 436.617728 | C28: =BerechnungLin!B28+BerechnungLin!$I$10 ->  | D28: 300 | E28: 419.8247385 | F28: 150 | G28: 288.4615385 | H28: 114.8896 | I28: 287.222272 | J28: 723.84 | K28: 592 | L28: 696 | M28: 1.04 | N28: =IF(AND(Kontrolle!D6="",Kontrolle!E6=""),"",IF(Kontrolle!D6="","Sie haben eine quadratische Kostenfunktion angegeben. Wechseln Sie zur Kontrollseite und dann zur 'quadratischen Kostenfunktion'.'","Sie haben eine kubische Kostenfunktion angegeben. Wechseln Sie zur Kontrollseite und dann zur 'kubischen Kostenfunktion'.")) -> Sie haben eine kubische Kostenfunktion angegeben. Wechseln Sie zur Kontrollseite und dann zur 'kubischen Kostenfunktion'. | R28: =SQRT($R$27) ->  | S28: =SQRT($S$27) -> 
A29: 1.12 | B29: 445.721856 | C29: =BerechnungLin!B29+BerechnungLin!$I$10 ->  | D29: 300 | E29: 397.9659429 | F29: 150 | G29: 267.8571429 | H29: 112.7264 | I29: 324.838144 | J29: 770.56 | K29: 576 | L29: 688 | M29: 1.12 | R29: =$R$28/$R$25 ->  | S29: =$S$28/$S$25 -> 
A30: 1.2 | B30: 454.656 | C30: =BerechnungLin!B30+BerechnungLin!$I$10 ->  | D30: 300 | E30: 378.88 | F30: 150 | G30: 250 | H30: 110.64 | I30: 361.344 | J30: 816 | K30: 560 | L30: 680 | M30: 1.2
A31: 1.28 | B31: 463.426304 | C31: =BerechnungLin!B31+BerechnungLin!$I$10 ->  | D31: 300 | E31: 362.0518 | F31: 150 | G31: 234.375 | H31: 108.6304 | I31: 396.733696 | J31: 860.16 | K31: 544 | L31: 672 | M31: 1.28 | R31: =1-R29 -> 
A32: 1.36 | B32: 472.038912 | C32: =BerechnungLin!B32+BerechnungLin!$I$10 ->  | D32: 300 | E32: 347.0874353 | F32: 150 | G32: 220.5882353 | H32: 106.6976 | I32: 431.001088 | J32: 903.04 | K32: 528 | L32: 664 | M32: 1.36
A33: 1.44 | B33: 480.499968 | C33: =BerechnungLin!B33+BerechnungLin!$I$10 ->  | D33: 300 | E33: 333.6805333 | F33: 150 | G33: 208.3333333 | H33: 104.8416 | I33: 464.140032 | J33: 944.64 | K33: 512 | L33: 656 | M33: 1.44
A34: 1.52 | B34: 488.815616 | C34: =BerechnungLin!B34+BerechnungLin!$I$10 ->  | D34: 300 | E34: 321.5892211 | F34: 150 | G34: 197.3684211 | H34: 103.0624 | I34: 496.144384 | J34: 984.96 | K34: 496 | L34: 648 | M34: 1.52
A35: 1.6 | B35: 496.992 | C35: =BerechnungLin!B35+BerechnungLin!$I$10 ->  | D35: 300 | E35: 310.62 | F35: 150 | G35: 187.5 | H35: 101.36 | I35: 527.008 | J35: 1024 | K35: 480 | L35: 640 | M35: 1.6
A36: 1.68 | B36: 505.035264 | C36: =BerechnungLin!B36+BerechnungLin!$I$10 ->  | D36: 300 | E36: 300.6162286 | F36: 150 | G36: 178.5714286 | H36: 99.7344 | I36: 556.724736 | J36: 1061.76 | K36: 464 | L36: 632 | M36: 1.68
A37: 1.76 | B37: 512.951552 | C37: =BerechnungLin!B37+BerechnungLin!$I$10 ->  | D37: 300 | E37: 291.4497455 | F37: 150 | G37: 170.4545455 | H37: 98.1856 | I37: 585.288448 | J37: 1098.24 | K37: 448 | L37: 624 | M37: 1.76
A38: 1.84 | B38: 520.747008 | C38: =BerechnungLin!B38+BerechnungLin!$I$10 ->  | D38: 300 | E38: 283.0146783 | F38: 150 | G38: 163.0434783 | H38: 96.7136 | I38: 612.692992 | J38: 1133.44 | K38: 432 | L38: 616 | M38: 1.84
A39: 1.92 | B39: 528.427776 | C39: =BerechnungLin!B39+BerechnungLin!$I$10 ->  | D39: 300 | E39: 275.2228 | F39: 150 | G39: 156.25 | H39: 95.3184 | I39: 638.932224 | J39: 1167.36 | K39: 416 | L39: 608 | M39: 1.92
A40: 2 | B40: 536 | C40: =BerechnungLin!B40+BerechnungLin!$I$10 ->  | D40: 300 | E40: 268 | F40: 150 | G40: 150 | H40: 94 | I40: 664 | J40: 1200 | K40: 400 | L40: 600 | M40: 2
A41: 2.08 | B41: 543.469824 | C41: =BerechnungLin!B41+BerechnungLin!$I$10 ->  | D41: 300 | E41: 261.2835692 | F41: 150 | G41: 144.2307692 | H41: 92.7584 | I41: 687.890176 | J41: 1231.36 | K41: 384 | L41: 592 | M41: 2.08
A42: 2.16 | B42: 550.843392 | C42: =BerechnungLin!B42+BerechnungLin!$I$10 ->  | D42: 300 | E42: 255.0200889 | F42: 150 | G42: 138.8888889 | H42: 91.5936 | I42: 710.596608 | J42: 1261.44 | K42: 368 | L42: 584 | M42: 2.16
A43: 2.24 | B43: 558.126848 | C43: =BerechnungLin!B43+BerechnungLin!$I$10 ->  | D43: 300 | E43: 249.1637714 | F43: 150 | G43: 133.9285714 | H43: 90.5056 | I43: 732.113152 | J43: 1290.24 | K43: 352 | L43: 576 | M43: 2.24
A44: 2.32 | B44: 565.326336 | C44: =BerechnungLin!B44+BerechnungLin!$I$10 ->  | D44: 300 | E44: 243.6751448 | F44: 150 | G44: 129.3103448 | H44: 89.4944 | I44: 752.433664 | J44: 1317.76 | K44: 336 | L44: 568 | M44: 2.32
A45: 2.4 | B45: 572.448 | C45: =BerechnungLin!B45+BerechnungLin!$I$10 ->  | D45: 300 | E45: 238.52 | F45: 150 | G45: 125 | H45: 88.56 | I45: 771.552 | J45: 1344 | K45: 320 | L45: 560 | M45: 2.4
A46: 2.48 | B46: 579.497984 | C46: =BerechnungLin!B46+BerechnungLin!$I$10 ->  | D46: 300 | E46: 233.6685419 | F46: 150 | G46: 120.9677419 | H46: 87.7024 | I46: 789.462016 | J46: 1368.96 | K46: 304 | L46: 552 | M46: 2.48
A47: 2.56 | B47: 586.482432 | C47: =BerechnungLin!B47+BerechnungLin!$I$10 ->  | D47: 300 | E47: 229.0947 | F47: 150 | G47: 117.1875 | H47: 86.9216 | I47: 806.157568 | J47: 1392.64 | K47: 288 | L47: 544 | M47: 2.56
A48: 2.64 | B48: 593.407488 | C48: =BerechnungLin!B48+BerechnungLin!$I$10 ->  | D48: 300 | E48: 224.7755636 | F48: 150 | G48: 113.6363636 | H48: 86.2176 | I48: 821.632512 | J48: 1415.04 | K48: 272 | L48: 536 | M48: 2.64
A49: 2.72 | B49: 600.279296 | C49: =BerechnungLin!B49+BerechnungLin!$I$10 ->  | D49: 300 | E49: 220.6909176 | F49: 150 | G49: 110.2941176 | H49: 85.5904 | I49: 835.880704 | J49: 1436.16 | K49: 256 | L49: 528 | M49: 2.72
A50: 2.8 | B50: 607.104 | C50: =BerechnungLin!B50+BerechnungLin!$I$10 ->  | D50: 300 | E50: 216.8228571 | F50: 150 | G50: 107.1428571 | H50: 85.04 | I50: 848.896 | J50: 1456 | K50: 240 | L50: 520 | M50: 2.8
A51: 2.88 | B51: 613.887744 | C51: =BerechnungLin!B51+BerechnungLin!$I$10 ->  | D51: 300 | E51: 213.1554667 | F51: 150 | G51: 104.1666667 | H51: 84.5664 | I51: 860.672256 | J51: 1474.56 | K51: 224 | L51: 512 | M51: 2.88
A52: 2.96 | B52: 620.636672 | C52: =BerechnungLin!B52+BerechnungLin!$I$10 ->  | D52: 300 | E52: 209.6745514 | F52: 150 | G52: 101.3513514 | H52: 84.1696 | I52: 871.203328 | J52: 1491.84 | K52: 208 | L52: 504 | M52: 2.96
A53: 3.04 | B53: 627.356928 | C53: =BerechnungLin!B53+BerechnungLin!$I$10 ->  | D53: 300 | E53: 206.3674105 | F53: 150 | G53: 98.68421053 | H53: 83.8496 | I53: 880.483072 | J53: 1507.84 | K53: 192 | L53: 496 | M53: 3.04
A54: 3.12 | B54: 634.054656 | C54: =BerechnungLin!B54+BerechnungLin!$I$10 ->  | D54: 300 | E54: 203.2226462 | F54: 150 | G54: 96.15384615 | H54: 83.6064 | I54: 888.505344 | J54: 1522.56 | K54: 176 | L54: 488 | M54: 3.12
A55: 3.2 | B55: 640.736 | C55: =BerechnungLin!B55+BerechnungLin!$I$10 ->  | D55: 300 | E55: 200.23 | F55: 150 | G55: 93.75 | H55: 83.44 | I55: 895.264 | J55: 1536 | K55: 160 | L55: 480 | M55: 3.2
A56: 3.28 | B56: 647.407104 | C56: =BerechnungLin!B56+BerechnungLin!$I$10 ->  | D56: 300 | E56: 197.3802146 | F56: 150 | G56: 91.46341463 | H56: 83.3504 | I56: 900.752896 | J56: 1548.16 | K56: 144 | L56: 472 | M56: 3.28
A57: 3.36 | B57: 654.074112 | C57: =BerechnungLin!B57+BerechnungLin!$I$10 ->  | D57: 300 | E57: 194.6649143 | F57: 150 | G57: 89.28571429 | H57: 83.3376 | I57: 904.965888 | J57: 1559.04 | K57: 128 | L57: 464 | M57: 3.36
A58: 3.44 | B58: 660.743168 | C58: =BerechnungLin!B58+BerechnungLin!$I$10 ->  | D58: 300 | E58: 192.0765023 | F58: 150 | G58: 87.20930233 | H58: 83.4016 | I58: 907.896832 | J58: 1568.64 | K58: 112 | L58: 456 | M58: 3.44
A59: 3.52 | B59: 667.420416 | C59: =BerechnungLin!B59+BerechnungLin!$I$10 ->  | D59: 300 | E59: 189.6080727 | F59: 150 | G59: 85.22727273 | H59: 83.5424 | I59: 909.539584 | J59: 1576.96 | K59: 96 | L59: 448 | M59: 3.52
A60: 3.6 | B60: 674.112 | C60: =BerechnungLin!B60+BerechnungLin!$I$10 ->  | D60: 300 | E60: 187.2533333 | F60: 150 | G60: 83.33333333 | H60: 83.76 | I60: 909.888 | J60: 1584 | K60: 80 | L60: 440 | M60: 3.6
A61: 3.68 | B61: 680.824064 | C61: =BerechnungLin!B61+BerechnungLin!$I$10 ->  | D61: 300 | E61: 185.0065391 | F61: 150 | G61: 81.52173913 | H61: 84.0544 | I61: 908.935936 | J61: 1589.76 | K61: 64 | L61: 432 | M61: 3.68
A62: 3.76 | B62: 687.562752 | C62: =BerechnungLin!B62+BerechnungLin!$I$10 ->  | D62: 300 | E62: 182.862434 | F62: 150 | G62: 79.78723404 | H62: 84.4256 | I62: 906.677248 | J62: 1594.24 | K62: 48 | L62: 424 | M62: 3.76
A63: 3.84 | B63: 694.334208 | C63: =BerechnungLin!B63+BerechnungLin!$I$10 ->  | D63: 300 | E63: 180.8162 | F63: 150 | G63: 78.125 | H63: 84.8736 | I63: 903.105792 | J63: 1597.44 | K63: 32 | L63: 416 | M63: 3.84
A64: 3.92 | B64: 701.144576 | C64: =BerechnungLin!B64+BerechnungLin!$I$10 ->  | D64: 300 | E64: 178.8634122 | F64: 150 | G64: 76.53061224 | H64: 85.3984 | I64: 898.215424 | J64: 1599.36 | K64: 16 | L64: 408 | M64: 3.92
A65: 4 | B65: 708 | C65: =BerechnungLin!B65+BerechnungLin!$I$10 ->  | D65: 300 | E65: 177 | F65: 150 | G65: 75 | H65: 86 | I65: 892 | J65: 1600 | K65: 0 | L65: 400 | M65: 4
A66: 4.08 | B66: 714.906624 | C66: =BerechnungLin!B66+BerechnungLin!$I$10 ->  | D66: 300 | E66: 175.2222118 | F66: 150 | G66: 73.52941176 | H66: 86.6784 | I66: 884.453376 | J66: 1599.36 | K66: -16 | L66: 392 | M66: 4.08
A67: 4.16 | B67: 721.870592 | C67: =BerechnungLin!B67+BerechnungLin!$I$10 ->  | D67: 300 | E67: 173.5265846 | F67: 150 | G67: 72.11538462 | H67: 87.4336 | I67: 875.569408 | J67: 1597.44 | K67: -32 | L67: 384 | M67: 4.16
A68: 4.24 | B68: 728.898048 | C68: =BerechnungLin!B68+BerechnungLin!$I$10 ->  | D68: 300 | E68: 171.909917 | F68: 150 | G68: 70.75471698 | H68: 88.2656 | I68: 865.341952 | J68: 1594.24 | K68: -48 | L68: 376 | M68: 4.24
A69: 4.32 | B69: 735.995136 | C69: =BerechnungLin!B69+BerechnungLin!$I$10 ->  | D69: 300 | E69: 170.3692444 | F69: 150 | G69: 69.44444444 | H69: 89.1744 | I69: 853.764864 | J69: 1589.76 | K69: -64 | L69: 368 | M69: 4.32
A70: 4.4 | B70: 743.168 | C70: =BerechnungLin!B70+BerechnungLin!$I$10 ->  | D70: 300 | E70: 168.9018182 | F70: 150 | G70: 68.18181818 | H70: 90.16 | I70: 840.832 | J70: 1584 | K70: -80 | L70: 360 | M70: 4.4
A71: 4.48 | B71: 750.422784 | C71: =BerechnungLin!B71+BerechnungLin!$I$10 ->  | D71: 300 | E71: 167.5050857 | F71: 150 | G71: 66.96428571 | H71: 91.2224 | I71: 826.537216 | J71: 1576.96 | K71: -96 | L71: 352 | M71: 4.48
A72: 4.56 | B72: 757.765632 | C72: =BerechnungLin!B72+BerechnungLin!$I$10 ->  | D72: 300 | E72: 166.1766737 | F72: 150 | G72: 65.78947368 | H72: 92.3616 | I72: 810.874368 | J72: 1568.64 | K72: -112 | L72: 344 | M72: 4.56
A73: 4.64 | B73: 765.202688 | C73: =BerechnungLin!B73+BerechnungLin!$I$10 ->  | D73: 300 | E73: 164.9143724 | F73: 150 | G73: 64.65517241 | H73: 93.5776 | I73: 793.837312 | J73: 1559.04 | K73: -128 | L73: 336 | M73: 4.64
A74: 4.72 | B74: 772.740096 | C74: =BerechnungLin!B74+BerechnungLin!$I$10 ->  | D74: 300 | E74: 163.716122 | F74: 150 | G74: 63.55932203 | H74: 94.8704 | I74: 775.419904 | J74: 1548.16 | K74: -144 | L74: 328 | M74: 4.72
A75: 4.8 | B75: 780.384 | C75: =BerechnungLin!B75+BerechnungLin!$I$10 ->  | D75: 300 | E75: 162.58 | F75: 150 | G75: 62.5 | H75: 96.24 | I75: 755.616 | J75: 1536 | K75: -160 | L75: 320 | M75: 4.8
A76: 4.88 | B76: 788.140544 | C76: =BerechnungLin!B76+BerechnungLin!$I$10 ->  | D76: 300 | E76: 161.5042098 | F76: 150 | G76: 61.47540984 | H76: 97.6864 | I76: 734.419456 | J76: 1522.56 | K76: -176 | L76: 312 | M76: 4.88
A77: 4.96 | B77: 796.015872 | C77: =BerechnungLin!B77+BerechnungLin!$I$10 ->  | D77: 300 | E77: 160.487071 | F77: 150 | G77: 60.48387097 | H77: 99.2096 | I77: 711.824128 | J77: 1507.84 | K77: -192 | L77: 304 | M77: 4.96
A78: 5.04 | B78: 804.016128 | C78: =BerechnungLin!B78+BerechnungLin!$I$10 ->  | D78: 300 | E78: 159.5270095 | F78: 150 | G78: 59.52380952 | H78: 100.8096 | I78: 687.823872 | J78: 1491.84 | K78: -208 | L78: 296 | M78: 5.04
A79: 5.12 | B79: 812.147456 | C79: =BerechnungLin!B79+BerechnungLin!$I$10 ->  | D79: 300 | E79: 158.62255 | F79: 150 | G79: 58.59375 | H79: 102.4864 | I79: =J79-B79 -> 662.412544 | J79: 1474.56 | K79: -224 | L79: 288 | M79: 5.12
A80: 5.2 | B80: 820.416 | C80: =BerechnungLin!B80+BerechnungLin!$I$10 ->  | D80: =$E$2 -> 300 | E80: =B80/A80 -> 157.7723077 | F80: 150 | G80: =$F$6/A80 -> 57.69230769 | H80: 104.24 | I80: 635.584 | J80: =($C$5*(A80*A80))+($D$5*A80) -> 1456 | K80: =($D$10*A80)+$E$10 -> -240 | L80: =($D$11*A80)+$E$11 -> 280 | M80: =A80 -> 5.2
A81: 5.28 | B81: =($B$2*(A81*A81*A81))+($C$2*(A81*A81))+($D$2*A81)+($E$2) -> 828.827904 | C81: =BerechnungLin!B81+BerechnungLin!$I$10 ->  | D81: 300 | E81: 156.9749818 | F81: =$E$7 -> 150 | G81: 56.81818182 | H81: =($C$9*(A81*A81))+($D$9*(A81))+$E$9 -> 106.0704 | I81: 607.332096 | J81: 1436.16 | K81: -256 | L81: 272 | M81: 5.28
A82: 5.36 | B82: 837.389312 | C82: =BerechnungLin!B82+BerechnungLin!$I$10 ->  | D82: 300 | E82: 156.2293493 | F82: 150 | G82: 55.97014925 | H82: 107.9776 | I82: 577.650688 | J82: 1415.04 | K82: -272 | L82: 264 | M82: 5.36
A83: =A82+$A$16 -> 5.44 | B83: 846.106368 | C83: =BerechnungLin!B83+BerechnungLin!$I$10 ->  | D83: 300 | E83: 155.5342588 | F83: 150 | G83: 55.14705882 | H83: 109.9616 | I83: 546.533632 | J83: 1392.64 | K83: -288 | L83: 256 | M83: 5.44
A84: 5.52 | B84: 854.985216 | C84: =BerechnungLin!B84+BerechnungLin!$I$10 ->  | D84: 300 | E84: 154.8886261 | F84: 150 | G84: 54.34782609 | H84: 112.0224 | I84: 513.974784 | J84: 1368.96 | K84: -304 | L84: 248 | M84: 5.52
A85: 5.6 | B85: 864.032 | C85: =BerechnungLin!B85+BerechnungLin!$I$10 ->  | D85: 300 | E85: 154.2914286 | F85: 150 | G85: 53.57142857 | H85: 114.16 | I85: 479.968 | J85: 1344 | K85: -320 | L85: 240 | M85: 5.6
A86: 5.68 | B86: 873.252864 | C86: =BerechnungLin!B86+BerechnungLin!$I$10 ->  | D86: 300 | E86: 153.7417014 | F86: 150 | G86: 52.81690141 | H86: 116.3744 | I86: 444.507136 | J86: 1317.76 | K86: -336 | L86: 232 | M86: 5.68
A87: 5.76 | B87: 882.653952 | C87: =BerechnungLin!B87+BerechnungLin!$I$10 ->  | D87: 300 | E87: 153.2385333 | F87: 150 | G87: 52.08333333 | H87: 118.6656 | I87: 407.586048 | J87: 1290.24 | K87: -352 | L87: 224 | M87: 5.76
A88: 5.84 | B88: 892.241408 | C88: =BerechnungLin!B88+BerechnungLin!$I$10 ->  | D88: 300 | E88: 152.781063 | F88: 150 | G88: 51.36986301 | H88: 121.0336 | I88: 369.198592 | J88: 1261.44 | K88: -368 | L88: 216 | M88: 5.84
A89: 5.92 | B89: 902.021376 | C89: =BerechnungLin!B89+BerechnungLin!$I$10 ->  | D89: 300 | E89: 152.3684757 | F89: 150 | G89: 50.67567568 | H89: 123.4784 | I89: 329.338624 | J89: 1231.36 | K89: -384 | L89: 208 | M89: 5.92
A90: 6 | B90: 912 | C90: =BerechnungLin!B90+BerechnungLin!$I$10 ->  | D90: 300 | E90: 152 | F90: 150 | G90: 50 | H90: 126 | I90: 288 | J90: 1200 | K90: -400 | L90: 200 | M90: 6
A91: 6.08 | B91: 922.183424 | C91: =BerechnungLin!B91+BerechnungLin!$I$10 ->  | D91: 300 | E91: 151.6749053 | F91: 150 | G91: 49.34210526 | H91: 128.5984 | I91: 245.176576 | J91: 1167.36 | K91: -416 | L91: 192 | M91: 6.08
A92: 6.16 | B92: 932.577792 | C92: =BerechnungLin!B92+BerechnungLin!$I$10 ->  | D92: 300 | E92: 151.3924987 | F92: 150 | G92: 48.7012987 | H92: 131.2736 | I92: 200.862208 | J92: 1133.44 | K92: -432 | L92: 184 | M92: 6.16
A93: 6.24 | B93: 943.189248 | C93: =BerechnungLin!B93+BerechnungLin!$I$10 ->  | D93: 300 | E93: 151.1521231 | F93: 150 | G93: 48.07692308 | H93: 134.0256 | I93: 155.050752 | J93: 1098.24 | K93: -448 | L93: 176 | M93: 6.24
A94: 6.32 | B94: 954.023936 | C94: =BerechnungLin!B94+BerechnungLin!$I$10 ->  | D94: 300 | E94: 150.9531544 | F94: 150 | G94: 47.46835443 | H94: 136.8544 | I94: 107.736064 | J94: 1061.76 | K94: -464 | L94: 168 | M94: 6.32
A95: 6.4 | B95: 965.088 | C95: =BerechnungLin!B95+BerechnungLin!$I$10 ->  | D95: 300 | E95: 150.795 | F95: 150 | G95: 46.875 | H95: 139.76 | I95: 58.912 | J95: 1024 | K95: -480 | L95: 160 | M95: 6.4
A96: 6.48 | B96: 976.387584 | C96: =BerechnungLin!B96+BerechnungLin!$I$10 ->  | D96: 300 | E96: 150.6770963 | F96: 150 | G96: 46.2962963 | H96: 142.7424 | I96: 8.572416 | J96: 984.96 | K96: -496 | L96: 152 | M96: 6.48
A97: 6.56 | B97: 987.928832 | C97: =BerechnungLin!B97+BerechnungLin!$I$10 ->  | D97: 300 | E97: 150.5989073 | F97: 150 | G97: 45.73170732 | H97: 145.8016 | I97: -43.288832 | J97: 944.64 | K97: -512 | L97: 144 | M97: 6.56
A98: 6.64 | B98: 999.717888 | C98: =BerechnungLin!B98+BerechnungLin!$I$10 ->  | D98: 300 | E98: 150.5599229 | F98: 150 | G98: 45.18072289 | H98: 148.9376 | I98: -96.677888 | J98: 903.04 | K98: -528 | L98: 136 | M98: 6.64
A99: 6.72 | B99: 1011.760896 | C99: =BerechnungLin!B99+BerechnungLin!$I$10 ->  | D99: 300 | E99: 150.5596571 | F99: 150 | G99: 44.64285714 | H99: 152.1504 | I99: -151.600896 | J99: 860.16 | K99: -544 | L99: 128 | M99: 6.72
A100: 6.8 | B100: 1024.064 | C100: =BerechnungLin!B100+BerechnungLin!$I$10 ->  | D100: 300 | E100: 150.5976471 | F100: 150 | G100: 44.11764706 | H100: 155.44 | I100: -208.064 | J100: 816 | K100: -560 | L100: 120 | M100: 6.8
A101: 6.88 | B101: 1036.633344 | C101: =BerechnungLin!B101+BerechnungLin!$I$10 ->  | D101: 300 | E101: 150.6734512 | F101: 150 | G101: 43.60465116 | H101: 158.8064 | I101: -266.073344 | J101: 770.56 | K101: -576 | L101: 112 | M101: 6.88
A102: 6.96 | B102: 1049.475072 | C102: =BerechnungLin!B102+BerechnungLin!$I$10 ->  | D102: 300 | E102: 150.7866483 | F102: 150 | G102: 43.10344828 | H102: 162.2496 | I102: -325.635072 | J102: 723.84 | K102: -592 | L102: 104 | M102: 6.96
A103: 7.04 | B103: 1062.595328 | C103: =BerechnungLin!B103+BerechnungLin!$I$10 ->  | D103: 300 | E103: 150.9368364 | F103: 150 | G103: 42.61363636 | H103: 165.7696 | I103: -386.755328 | J103: 675.84 | K103: -608 | L103: 96 | M103: 7.04
A104: 7.12 | B104: 1076.000256 | C104: =BerechnungLin!B104+BerechnungLin!$I$10 ->  | D104: 300 | E104: 151.1236315 | F104: 150 | G104: 42.13483146 | H104: 169.3664 | I104: -449.440256 | J104: 626.56 | K104: -624 | L104: 88 | M104: 7.12
A105: 7.2 | B105: 1089.696 | C105: =BerechnungLin!B105+BerechnungLin!$I$10 ->  | D105: 300 | E105: 151.3466667 | F105: 150 | G105: 41.66666667 | H105: 173.04 | I105: -513.696 | J105: 576 | K105: -640 | L105: 80 | M105: 7.2
A106: 7.28 | B106: 1103.688704 | C106: =BerechnungLin!B106+BerechnungLin!$I$10 ->  | D106: 300 | E106: 151.6055912 | F106: 150 | G106: 41.20879121 | H106: 176.7904 | I106: -579.528704 | J106: 524.16 | K106: -656 | L106: 72 | M106: 7.28
A107: 7.36 | B107: 1117.984512 | C107: =BerechnungLin!B107+BerechnungLin!$I$10 ->  | D107: 300 | E107: 151.9000696 | F107: 150 | G107: 40.76086957 | H107: 180.6176 | I107: -646.944512 | J107: 471.04 | K107: -672 | L107: 64 | M107: 7.36
A108: 7.44 | B108: 1132.589568 | C108: =BerechnungLin!B108+BerechnungLin!$I$10 ->  | D108: 300 | E108: 152.2297806 | F108: 150 | G108: 40.32258065 | H108: 184.5216 | I108: -715.949568 | J108: 416.64 | K108: -688 | L108: 56 | M108: 7.44
A109: 7.52 | B109: 1147.510016 | C109: =BerechnungLin!B109+BerechnungLin!$I$10 ->  | D109: 300 | E109: 152.594417 | F109: 150 | G109: 39.89361702 | H109: 188.5024 | I109: -786.550016 | J109: 360.96 | K109: -704 | L109: 48 | M109: 7.52
A110: 7.6 | B110: 1162.752 | C110: =BerechnungLin!B110+BerechnungLin!$I$10 ->  | D110: 300 | E110: 152.9936842 | F110: 150 | G110: 39.47368421 | H110: 192.56 | I110: -858.752 | J110: 304 | K110: -720 | L110: 40 | M110: 7.6
A111: 7.68 | B111: 1178.321664 | C111: =BerechnungLin!B111+BerechnungLin!$I$10 ->  | D111: 300 | E111: 153.4273 | F111: 150 | G111: 39.0625 | H111: 196.6944 | I111: -932.561664 | J111: 245.76 | K111: -736 | L111: 32 | M111: 7.68
A112: 7.76 | B112: 1194.225152 | C112: =BerechnungLin!B112+BerechnungLin!$I$10 ->  | D112: 300 | E112: 153.8949938 | F112: 150 | G112: 38.65979381 | H112: 200.9056 | I112: -1007.985152 | J112: 186.24 | K112: -752 | L112: 24 | M112: 7.76
A113: 7.84 | B113: 1210.468608 | C113: =BerechnungLin!B113+BerechnungLin!$I$10 ->  | D113: 300 | E113: 154.3965061 | F113: 150 | G113: 38.26530612 | H113: 205.1936 | I113: -1085.028608 | J113: 125.44 | K113: -768 | L113: 16 | M113: 7.84
A114: 7.92 | B114: 1227.058176 | C114: =BerechnungLin!B114+BerechnungLin!$I$10 ->  | D114: 300 | E114: 154.9315879 | F114: 150 | G114: 37.87878788 | H114: 209.5584 | I114: -1163.698176 | J114: 63.36 | K114: -784 | L114: 8 | M114: 7.92
A115: 8 | B115: 1244 | C115: =BerechnungLin!B115+BerechnungLin!$I$10 ->  | D115: 300 | E115: 155.5 | F115: 150 | G115: 37.5 | H115: 214 | I115: -1244 | J115: 0 | K115: -800 | L115: 0 | M115: 8
F116: =MIN(F16:F115) -> 150 | H116: =MIN(H16:H115) -> 83.3376 | J116: =MAX(I15:I115) -> 909.888 | K116: =MAX(J15:J115) -> 1600

Sheet Grafik1
F3: X-Werte | G3: Y-Werte
E4: Menge | F4: =BerechnungLin!G13 ->  | G4: 0
F5: =BerechnungLin!G13 ->  | G5: =BerechnungLin!J13 -> 
A14: =IF(AND(Kontrolle!D6="",Kontrolle!E6=""),"",IF(Kontrolle!D6="","Sie haben eine quadratische Kostenfunktion angegeben. Wechseln Sie zur Kontrollseite und dann zur 'quadratischen Kostenfunktion'.'","Sie haben eine kubische Kostenfunktion angegeben. Wechseln Sie zur Kontrollseite und dann zur 'kubischen Kostenfunktion'.")) -> Sie haben eine kubische Kostenfunktion angegeben. Wechseln Sie zur Kontrollseite und dann zur 'kubischen Kostenfunktion'.

Sheet Grafik2
F3: X-Werte | G3: Y-Werte
E4: Menge | F4: =BerechnungLin!G13 ->  | G4: 0
F5: =BerechnungLin!G13 ->  | G5: =BerechnungLin!H13 -> 
E6: Preis | F6: 0 | G6: =BerechnungLin!H13 -> 
F7: =BerechnungLin!G13 ->  | G7: =BerechnungLin!H13 -> 
A14: =IF(AND(Kontrolle!D6="",Kontrolle!E6=""),"",IF(Kontrolle!D6="","Sie haben eine quadratische Kostenfunktion angegeben. Wechseln Sie zur Kontrollseite und dann zur 'quadratischen Kostenfunktion'.'","Sie haben eine kubische Kostenfunktion angegeben. Wechseln Sie zur Kontrollseite und dann zur 'kubischen Kostenfunktion'.")) -> Sie haben eine kubische Kostenfunktion angegeben. Wechseln Sie zur Kontrollseite und dann zur 'kubischen Kostenfunktion'.

Sheet Grafik3
F2: X-Werte | G2: Y-Werte
E3: Gewinn | F3: =BerechnungLin!G13 ->  | G3: 0
F4: =BerechnungLin!G13 ->  | G4: =BerechnungLin!I13 -> 
A14: =IF(AND(Kontrolle!D6="",Kontrolle!E6=""),"",IF(Kontrolle!D6="","Sie haben eine quadratische Kostenfunktion angegeben. Wechseln Sie zur Kontrollseite und dann zur 'quadratischen Kostenfunktion'.'","Sie haben eine kubische Kostenfunktion angegeben. Wechseln Sie zur Kontrollseite und dann zur 'kubischen Kostenfunktion'.")) -> Sie haben eine kubische Kostenfunktion angegeben. Wechseln Sie zur Kontrollseite und dann zur 'kubischen Kostenfunktion'.

Sheet BerechnungQua
B1: aX3 | C1: bX2 | D1: cx | E1: d | F1: d/x | G1: Ausgabewerte | N1: Berechnung der Cournotschen Menge (quadratische Kostenfunktion)
A2: K= | B2: =Kontrolle!D6 -> 2 | C2: =Kontrolle!E6 -> -20 | D2: =Kontrolle!F6 -> 150 | E2: =Kontrolle!G6 -> 300 | G2: Gewinnmaximum tabellarisch | J2: Gmax | K2: =MAX(I15:I115) -> 909.888
A3: Kv= | B3: =Kontrolle!D8 -> 2 | C3: =Kontrolle!E8 -> -20 | D3: =Kontrolle!F8 -> 150 | J3: XGmax | K3: =VLOOKUP(K2,I15:M115,5,FALSE) -> 3.6 | N3: K = bx2 + cx + d
A4: Kf= | D4: =D2 -> 150 | J4: PGmax | K4: =VLOOKUP(K2,I15:M115,4,FALSE) -> 440 | N4: =IF(AND(C9=0,D9>0),(E10-E9)/(D9+(D10*-1)),"") ->  | P4: TRUE
A5: E1= | C5: =Kontrolle!E12 -> -100 | D5: =Kontrolle!F12 -> 800 | G5: Abweichungen der tabellarischen von der analystischen | K5: =(100%*(K2-I10))/100 -> 
A6: k= | C6: =Kontrolle!E9 -> 2 | D6: =Kontrolle!F9 -> -20 | E6: =D2 -> 150 | F6: =Kontrolle!H9 -> 300 | G6: Gewinnermittlung. (analytischer Gewinn = 100%)
A7: kv= | C7: =Kontrolle!E10 -> 2 | D7: =Kontrolle!F10 -> -20 | E7: =Kontrolle!G10 -> 150 | G7: Gewinnmaximum analytisch / Cournotscher Punkt
A8: kf= | F8: =E2 -> 300
A9: K' | C9: =Kontrolle!E11 -> 6 | D9: =Kontrolle!F11 -> -40 | E9: =Kontrolle!G11 -> 150 | G9: XGmax | H9: PGmax | I9: Gmax | J9: E | K9: K | N9: Aktivieren Sie das Kontrollkästchen, wenn die Cournotsche Menge in ganzen Zahlen angegeben werden soll. (G10)
A10: E' | D10: =Kontrolle!F13 -> -200 | E10: =Kontrolle!G13 -> 800 | G10: =IF(P4=TRUE,ROUND(N4,0),N4) ->  | H10: =(G10*D11)+E11 ->  | I10: =J10-K10 ->  | J10: =G10*H10 ->  | K10: =(B2*(G10*G10*G10))+(C2*(G10*G10))+(D2*G10)+E2 -> 
A11: PAF | D11: =Kontrolle!F7 -> -100 | E11: =Kontrolle!G7 -> 800 | G11: k | H11: kv | I11: kf | J11: E' | K11: K'
A12: Xmax | B12: =Kontrolle!K12 -> 8 | G12: =(C6*(G10*G10))+(D6*(G10))+(E6)+(F6/G10) ->  | H12: =(C7*(G10*G10))+(D7*G10)+E7 ->  | I12: =F8 -> 300 | J12: =(D10*G10)+E10 ->  | K12: =(C9*(G10*G10))+(D9*G10)+E9 -> 
G13: =N4 ->  | H13: =(G13*D11)+E11 ->  | I13: =J13-K13 ->  | J13: =G13*H13 ->  | K13: =(C2*(G13*G13)+(D2*G13)+E2) -> 
A14: X | B14: K | C14: K+Gmax | D14: Kf | E14: k | F14: kv | G14: kf | H14: K' | I14: E-K | J14: E | K14: E' | L14: PAF1 | M14: X | N14: Berechnung bei quadratischer Kostenfunktion (K=ax2+bx+c)
A15: 0 | B15: =($B$2*(A15*A15*A15))+($C$2*(A15*A15))+($D$2*A15)+($E$2) -> 300 | C15: =B15+$I$10 ->  | D15: =$E$2 -> 300 | I15: =J15-B15 -> -300 | J15: =($C$5*(A15*A15))+($D$5*A15) -> 0 | K15: =($D$10*A15)+$E$10 -> 800 | L15: =($D$11*A15)+$E$11 -> 800 | M15: 0
A16: =$B$12/100 -> 0.08 | B16: =($B$2*(A16*A16*A16))+($C$2*(A16*A16))+($D$2*A16)+($E$2) -> 311.873024 | C16: =B16+$I$10 ->  | D16: =$E$2 -> 300 | E16: =B16/A16 -> 3898.4128 | F16: =C16/A16 ->  | G16: =$F$6/A16 -> 3750 | H16: =($C$9*(A16*A16))+($D$9*(A16))+$E$9 -> 146.8384 | I16: -248.513024 | J16: =($C$5*(A16*A16))+($D$5*A16) -> 63.36 | K16: =($D$10*A16)+$E$10 -> 784 | L16: =($D$11*A16)+$E$11 -> 792 | M16: =B12/100 -> 0.08
A17: =A16+$A$16 -> 0.16 | B17: =($B$2*(A17*A17*A17))+($C$2*(A17*A17))+($D$2*A17)+($E$2) -> 323.496192 | D17: 300 | E17: 2021.8512 | G17: 1875 | H17: =($C$9*(A17*A17))+($D$9*(A17))+$E$9 -> 143.7536 | I17: -198.056192 | J17: 125.44 | K17: 768 | L17: 784 | M17: =M16+$M$16 -> 0.16
A18: =A17+$A$16 -> 0.24 | B18: 334.875648 | D18: 300 | E18: 1395.3152 | G18: 1250 | H18: 140.7456 | I18: -148.635648 | J18: 186.24 | K18: 752 | L18: 776 | M18: 0.24
A19: =A18+$A$16 -> 0.32 | B19: 346.017536 | D19: 300 | E19: 1081.3048 | G19: 937.5 | H19: 137.8144 | I19: -100.257536 | J19: 245.76 | K19: 736 | L19: 768 | M19: 0.32
A20: 0.4 | B20: 356.928 | D20: 300 | E20: 892.32 | G20: 750 | H20: 134.96 | I20: -52.928 | J20: 304 | K20: 720 | L20: 760 | M20: 0.4
A21: 0.48 | B21: 367.613184 | D21: 300 | E21: 765.8608 | G21: 625 | H21: 132.1824 | I21: -6.653184 | J21: 360.96 | K21: 704 | L21: 752 | M21: 0.48
A22: 0.56 | B22: 378.079232 | D22: 300 | E22: 675.1414857 | G22: 535.7142857 | H22: 129.4816 | I22: 38.560768 | J22: 416.64 | K22: 688 | L22: 744 | M22: 0.56
A23: 0.64 | B23: 388.332288 | D23: 300 | E23: 606.7692 | G23: 468.75 | H23: 126.8576 | I23: 82.707712 | J23: 471.04 | K23: 672 | L23: 736 | M23: 0.64
A24: 0.72 | B24: 398.378496 | D24: 300 | E24: 553.3034667 | G24: 416.6666667 | H24: 124.3104 | I24: 125.781504 | J24: 524.16 | K24: 656 | L24: 728 | M24: 0.72
A25: 0.8 | B25: 408.224 | D25: 300 | E25: 510.28 | G25: 375 | H25: 121.84 | I25: 167.776 | J25: 576 | K25: 640 | L25: 720 | M25: 0.8 | Q25: 12
A26: 0.88 | B26: 417.874944 | D26: 300 | E26: 474.8578909 | G26: 340.9090909 | H26: 119.4464 | I26: 208.685056 | J26: 626.56 | K26: 624 | L26: 712 | M26: 0.88
A27: 0.96 | B27: 427.337472 | D27: 300 | E27: 445.1432 | G27: 312.5 | H27: 117.1296 | I27: 248.502528 | J27: 675.84 | K27: 608 | L27: 704 | M27: 0.96 | Q27: =(($D$10*$Q$25)+($D$9*-1*$Q$25)+$E$10-$E$9)/$C$9 -> -211.6666667
A28: 1.04 | B28: 436.617728 | D28: 300 | E28: 419.8247385 | G28: 288.4615385 | H28: 114.8896 | I28: 287.222272 | J28: 723.84 | K28: 592 | L28: 696 | M28: 1.04 | N28: =IF(AND(Kontrolle!D6="",Kontrolle!E6=""),"Sie haben eine lineare Kostenfunktion angegeben. Wechseln Sie zur Kontrollseite und dann zur 'linearen Kostenfunktion'.",IF(Kontrolle!D6="","","Sie haben eine kubische Kostenfunktion angegeben. Wechseln Sie zur Kontrollseite und dann zur 'kubischen Kostenfunktion'.")) -> Sie haben eine kubische Kostenfunktion angegeben. Wechseln Sie zur Kontrollseite und dann zur 'kubischen Kostenfunktion'. | Q28: =SQRT($Q$27) -> 
A29: 1.12 | B29: 445.721856 | D29: 300 | E29: 397.9659429 | G29: 267.8571429 | H29: 112.7264 | I29: 324.838144 | J29: 770.56 | K29: 576 | L29: 688 | M29: 1.12 | Q29: =$Q$28/$Q$25 -> 
A30: 1.2 | B30: 454.656 | D30: 300 | E30: 378.88 | G30: 250 | H30: 110.64 | I30: 361.344 | J30: 816 | K30: 560 | L30: 680 | M30: 1.2
A31: 1.28 | B31: 463.426304 | D31: 300 | E31: 362.0518 | G31: 234.375 | H31: 108.6304 | I31: 396.733696 | J31: 860.16 | K31: 544 | L31: 672 | M31: 1.28
A32: 1.36 | B32: 472.038912 | D32: 300 | E32: 347.0874353 | G32: 220.5882353 | H32: 106.6976 | I32: 431.001088 | J32: 903.04 | K32: 528 | L32: 664 | M32: 1.36
A33: 1.44 | B33: 480.499968 | D33: 300 | E33: 333.6805333 | G33: 208.3333333 | H33: 104.8416 | I33: 464.140032 | J33: 944.64 | K33: 512 | L33: 656 | M33: 1.44
A34: 1.52 | B34: 488.815616 | D34: 300 | E34: 321.5892211 | G34: 197.3684211 | H34: 103.0624 | I34: 496.144384 | J34: 984.96 | K34: 496 | L34: 648 | M34: 1.52
A35: 1.6 | B35: 496.992 | D35: 300 | E35: 310.62 | G35: 187.5 | H35: 101.36 | I35: 527.008 | J35: 1024 | K35: 480 | L35: 640 | M35: 1.6
A36: 1.68 | B36: 505.035264 | D36: 300 | E36: 300.6162286 | G36: 178.5714286 | H36: 99.7344 | I36: 556.724736 | J36: 1061.76 | K36: 464 | L36: 632 | M36: 1.68
A37: 1.76 | B37: 512.951552 | D37: 300 | E37: 291.4497455 | G37: 170.4545455 | H37: 98.1856 | I37: 585.288448 | J37: 1098.24 | K37: 448 | L37: 624 | M37: 1.76
A38: 1.84 | B38: 520.747008 | D38: 300 | E38: 283.0146783 | G38: 163.0434783 | H38: 96.7136 | I38: 612.692992 | J38: 1133.44 | K38: 432 | L38: 616 | M38: 1.84
A39: 1.92 | B39: 528.427776 | D39: 300 | E39: 275.2228 | G39: 156.25 | H39: 95.3184 | I39: 638.932224 | J39: 1167.36 | K39: 416 | L39: 608 | M39: 1.92
A40: 2 | B40: 536 | D40: 300 | E40: 268 | G40: 150 | H40: 94 | I40: 664 | J40: 1200 | K40: 400 | L40: 600 | M40: 2
A41: 2.08 | B41: 543.469824 | D41: 300 | E41: 261.2835692 | G41: 144.2307692 | H41: 92.7584 | I41: 687.890176 | J41: 1231.36 | K41: 384 | L41: 592 | M41: 2.08
A42: 2.16 | B42: 550.843392 | D42: 300 | E42: 255.0200889 | G42: 138.8888889 | H42: 91.5936 | I42: 710.596608 | J42: 1261.44 | K42: 368 | L42: 584 | M42: 2.16
A43: 2.24 | B43: 558.126848 | D43: 300 | E43: 249.1637714 | G43: 133.9285714 | H43: 90.5056 | I43: 732.113152 | J43: 1290.24 | K43: 352 | L43: 576 | M43: 2.24
A44: 2.32 | B44: 565.326336 | D44: 300 | E44: 243.6751448 | G44: 129.3103448 | H44: 89.4944 | I44: 752.433664 | J44: 1317.76 | K44: 336 | L44: 568 | M44: 2.32
A45: 2.4 | B45: 572.448 | D45: 300 | E45: 238.52 | G45: 125 | H45: 88.56 | I45: 771.552 | J45: 1344 | K45: 320 | L45: 560 | M45: 2.4
A46: 2.48 | B46: 579.497984 | D46: 300 | E46: 233.6685419 | G46: 120.9677419 | H46: 87.7024 | I46: 789.462016 | J46: 1368.96 | K46: 304 | L46: 552 | M46: 2.48
A47: 2.56 | B47: 586.482432 | D47: 300 | E47: 229.0947 | G47: 117.1875 | H47: 86.9216 | I47: 806.157568 | J47: 1392.64 | K47: 288 | L47: 544 | M47: 2.56
A48: 2.64 | B48: 593.407488 | D48: 300 | E48: 224.7755636 | G48: 113.6363636 | H48: 86.2176 | I48: 821.632512 | J48: 1415.04 | K48: 272 | L48: 536 | M48: 2.64
A49: 2.72 | B49: 600.279296 | D49: 300 | E49: 220.6909176 | G49: 110.2941176 | H49: 85.5904 | I49: 835.880704 | J49: 1436.16 | K49: 256 | L49: 528 | M49: 2.72
A50: 2.8 | B50: 607.104 | D50: 300 | E50: 216.8228571 | G50: 107.1428571 | H50: 85.04 | I50: 848.896 | J50: 1456 | K50: 240 | L50: 520 | M50: 2.8
A51: 2.88 | B51: 613.887744 | D51: 300 | E51: 213.1554667 | G51: 104.1666667 | H51: 84.5664 | I51: 860.672256 | J51: 1474.56 | K51: 224 | L51: 512 | M51: 2.88
A52: 2.96 | B52: 620.636672 | D52: 300 | E52: 209.6745514 | G52: 101.3513514 | H52: 84.1696 | I52: 871.203328 | J52: 1491.84 | K52: 208 | L52: 504 | M52: 2.96
A53: 3.04 | B53: 627.356928 | D53: 300 | E53: 206.3674105 | G53: 98.68421053 | H53: 83.8496 | I53: 880.483072 | J53: 1507.84 | K53: 192 | L53: 496 | M53: 3.04
A54: 3.12 | B54: 634.054656 | D54: 300 | E54: 203.2226462 | G54: 96.15384615 | H54: 83.6064 | I54: 888.505344 | J54: 1522.56 | K54: 176 | L54: 488 | M54: 3.12
A55: 3.2 | B55: 640.736 | D55: 300 | E55: 200.23 | G55: 93.75 | H55: 83.44 | I55: 895.264 | J55: 1536 | K55: 160 | L55: 480 | M55: 3.2
A56: 3.28 | B56: 647.407104 | D56: 300 | E56: 197.3802146 | G56: 91.46341463 | H56: 83.3504 | I56: 900.752896 | J56: 1548.16 | K56: 144 | L56: 472 | M56: 3.28
A57: 3.36 | B57: 654.074112 | D57: 300 | E57: 194.6649143 | G57: 89.28571429 | H57: 83.3376 | I57: 904.965888 | J57: 1559.04 | K57: 128 | L57: 464 | M57: 3.36
A58: 3.44 | B58: 660.743168 | D58: 300 | E58: 192.0765023 | G58: 87.20930233 | H58: 83.4016 | I58: 907.896832 | J58: 1568.64 | K58: 112 | L58: 456 | M58: 3.44
A59: 3.52 | B59: 667.420416 | D59: 300 | E59: 189.6080727 | G59: 85.22727273 | H59: 83.5424 | I59: 909.539584 | J59: 1576.96 | K59: 96 | L59: 448 | M59: 3.52
A60: 3.6 | B60: 674.112 | D60: 300 | E60: 187.2533333 | G60: 83.33333333 | H60: 83.76 | I60: 909.888 | J60: 1584 | K60: 80 | L60: 440 | M60: 3.6
A61: 3.68 | B61: 680.824064 | D61: 300 | E61: 185.0065391 | G61: 81.52173913 | H61: 84.0544 | I61: 908.935936 | J61: 1589.76 | K61: 64 | L61: 432 | M61: 3.68
A62: 3.76 | B62: 687.562752 | D62: 300 | E62: 182.862434 | G62: 79.78723404 | H62: 84.4256 | I62: 906.677248 | J62: 1594.24 | K62: 48 | L62: 424 | M62: 3.76
A63: 3.84 | B63: 694.334208 | D63: 300 | E63: 180.8162 | G63: 78.125 | H63: 84.8736 | I63: 903.105792 | J63: 1597.44 | K63: 32 | L63: 416 | M63: 3.84
A64: 3.92 | B64: 701.144576 | D64: 300 | E64: 178.8634122 | G64: 76.53061224 | H64: 85.3984 | I64: 898.215424 | J64: 1599.36 | K64: 16 | L64: 408 | M64: 3.92
A65: 4 | B65: 708 | D65: 300 | E65: 177 | G65: 75 | H65: 86 | I65: 892 | J65: 1600 | K65: 0 | L65: 400 | M65: 4
A66: 4.08 | B66: 714.906624 | D66: 300 | E66: 175.2222118 | G66: 73.52941176 | H66: 86.6784 | I66: 884.453376 | J66: 1599.36 | K66: -16 | L66: 392 | M66: 4.08
A67: 4.16 | B67: 721.870592 | D67: 300 | E67: 173.5265846 | G67: 72.11538462 | H67: 87.4336 | I67: 875.569408 | J67: 1597.44 | K67: -32 | L67: 384 | M67: 4.16
A68: 4.24 | B68: 728.898048 | D68: 300 | E68: 171.909917 | G68: 70.75471698 | H68: 88.2656 | I68: 865.341952 | J68: 1594.24 | K68: -48 | L68: 376 | M68: 4.24
A69: 4.32 | B69: 735.995136 | D69: 300 | E69: 170.3692444 | G69: 69.44444444 | H69: 89.1744 | I69: 853.764864 | J69: 1589.76 | K69: -64 | L69: 368 | M69: 4.32
A70: 4.4 | B70: 743.168 | D70: 300 | E70: 168.9018182 | G70: 68.18181818 | H70: 90.16 | I70: 840.832 | J70: 1584 | K70: -80 | L70: 360 | M70: 4.4
A71: 4.48 | B71: 750.422784 | D71: 300 | E71: 167.5050857 | G71: 66.96428571 | H71: 91.2224 | I71: 826.537216 | J71: 1576.96 | K71: -96 | L71: 352 | M71: 4.48
A72: 4.56 | B72: 757.765632 | D72: 300 | E72: 166.1766737 | G72: 65.78947368 | H72: 92.3616 | I72: 810.874368 | J72: 1568.64 | K72: -112 | L72: 344 | M72: 4.56
A73: 4.64 | B73: 765.202688 | D73: 300 | E73: 164.9143724 | G73: 64.65517241 | H73: 93.5776 | I73: 793.837312 | J73: 1559.04 | K73: -128 | L73: 336 | M73: 4.64
A74: 4.72 | B74: 772.740096 | D74: 300 | E74: 163.716122 | G74: 63.55932203 | H74: 94.8704 | I74: 775.419904 | J74: 1548.16 | K74: -144 | L74: 328 | M74: 4.72
A75: 4.8 | B75: 780.384 | D75: 300 | E75: 162.58 | G75: 62.5 | H75: 96.24 | I75: 755.616 | J75: 1536 | K75: -160 | L75: 320 | M75: 4.8
A76: 4.88 | B76: 788.140544 | D76: 300 | E76: 161.5042098 | G76: 61.47540984 | H76: 97.6864 | I76: 734.419456 | J76: 1522.56 | K76: -176 | L76: 312 | M76: 4.88
A77: 4.96 | B77: 796.015872 | D77: 300 | E77: 160.487071 | G77: 60.48387097 | H77: 99.2096 | I77: 711.824128 | J77: 1507.84 | K77: -192 | L77: 304 | M77: 4.96
A78: 5.04 | B78: 804.016128 | D78: 300 | E78: 159.5270095 | G78: 59.52380952 | H78: 100.8096 | I78: 687.823872 | J78: 1491.84 | K78: -208 | L78: 296 | M78: 5.04
A79: 5.12 | B79: 812.147456 | D79: 300 | E79: 158.62255 | G79: 58.59375 | H79: 102.4864 | I79: =J79-B79 -> 662.412544 | J79: 1474.56 | K79: -224 | L79: 288 | M79: 5.12
A80: 5.2 | B80: 820.416 | C80: =B80+$I$10 ->  | D80: =$E$2 -> 300 | E80: =B80/A80 -> 157.7723077 | F80: =C80/A80 ->  | G80: =$F$6/A80 -> 57.69230769 | H80: 104.24 | I80: 635.584 | J80: =($C$5*(A80*A80))+($D$5*A80) -> 1456 | K80: =($D$10*A80)+$E$10 -> -240 | L80: =($D$11*A80)+$E$11 -> 280 | M80: 5.2
A81: 5.28 | B81: =($B$2*(A81*A81*A81))+($C$2*(A81*A81))+($D$2*A81)+($E$2) -> 828.827904 | D81: 300 | E81: 156.9749818 | G81: 56.81818182 | H81: =($C$9*(A81*A81))+($D$9*(A81))+$E$9 -> 106.0704 | I81: 607.332096 | J81: 1436.16 | K81: -256 | L81: 272 | M81: =M80+$M$16 -> 5.28
A82: 5.36 | B82: 837.389312 | D82: 300 | E82: 156.2293493 | G82: 55.97014925 | H82: 107.9776 | I82: 577.650688 | J82: 1415.04 | K82: -272 | L82: 264 | M82: 5.36
A83: =A82+$A$16 -> 5.44 | B83: 846.106368 | D83: 300 | E83: 155.5342588 | G83: 55.14705882 | H83: 109.9616 | I83: 546.533632 | J83: 1392.64 | K83: -288 | L83: 256 | M83: 5.44
A84: 5.52 | B84: 854.985216 | D84: 300 | E84: 154.8886261 | G84: 54.34782609 | H84: 112.0224 | I84: 513.974784 | J84: 1368.96 | K84: -304 | L84: 248 | M84: 5.52
A85: 5.6 | B85: 864.032 | D85: 300 | E85: 154.2914286 | G85: 53.57142857 | H85: 114.16 | I85: 479.968 | J85: 1344 | K85: -320 | L85: 240 | M85: 5.6
A86: 5.68 | B86: 873.252864 | D86: 300 | E86: 153.7417014 | G86: 52.81690141 | H86: 116.3744 | I86: 444.507136 | J86: 1317.76 | K86: -336 | L86: 232 | M86: 5.68
A87: 5.76 | B87: 882.653952 | D87: 300 | E87: 153.2385333 | G87: 52.08333333 | H87: 118.6656 | I87: 407.586048 | J87: 1290.24 | K87: -352 | L87: 224 | M87: 5.76
A88: 5.84 | B88: 892.241408 | D88: 300 | E88: 152.781063 | G88: 51.36986301 | H88: 121.0336 | I88: 369.198592 | J88: 1261.44 | K88: -368 | L88: 216 | M88: 5.84
A89: 5.92 | B89: 902.021376 | D89: 300 | E89: 152.3684757 | G89: 50.67567568 | H89: 123.4784 | I89: 329.338624 | J89: 1231.36 | K89: -384 | L89: 208 | M89: 5.92
A90: 6 | B90: 912 | D90: 300 | E90: 152 | G90: 50 | H90: 126 | I90: 288 | J90: 1200 | K90: -400 | L90: 200 | M90: 6
A91: 6.08 | B91: 922.183424 | D91: 300 | E91: 151.6749053 | G91: 49.34210526 | H91: 128.5984 | I91: 245.176576 | J91: 1167.36 | K91: -416 | L91: 192 | M91: 6.08
A92: 6.16 | B92: 932.577792 | D92: 300 | E92: 151.3924987 | G92: 48.7012987 | H92: 131.2736 | I92: 200.862208 | J92: 1133.44 | K92: -432 | L92: 184 | M92: 6.16
A93: 6.24 | B93: 943.189248 | D93: 300 | E93: 151.1521231 | G93: 48.07692308 | H93: 134.0256 | I93: 155.050752 | J93: 1098.24 | K93: -448 | L93: 176 | M93: 6.24
A94: 6.32 | B94: 954.023936 | D94: 300 | E94: 150.9531544 | G94: 47.46835443 | H94: 136.8544 | I94: 107.736064 | J94: 1061.76 | K94: -464 | L94: 168 | M94: 6.32
A95: 6.4 | B95: 965.088 | D95: 300 | E95: 150.795 | G95: 46.875 | H95: 139.76 | I95: 58.912 | J95: 1024 | K95: -480 | L95: 160 | M95: 6.4
A96: 6.48 | B96: 976.387584 | D96: 300 | E96: 150.6770963 | G96: 46.2962963 | H96: 142.7424 | I96: 8.572416 | J96: 984.96 | K96: -496 | L96: 152 | M96: 6.48
A97: 6.56 | B97: 987.928832 | D97: 300 | E97: 150.5989073 | G97: 45.73170732 | H97: 145.8016 | I97: -43.288832 | J97: 944.64 | K97: -512 | L97: 144 | M97: 6.56
A98: 6.64 | B98: 999.717888 | D98: 300 | E98: 150.5599229 | G98: 45.18072289 | H98: 148.9376 | I98: -96.677888 | J98: 903.04 | K98: -528 | L98: 136 | M98: 6.64
A99: 6.72 | B99: 1011.760896 | D99: 300 | E99: 150.5596571 | G99: 44.64285714 | H99: 152.1504 | I99: -151.600896 | J99: 860.16 | K99: -544 | L99: 128 | M99: 6.72
A100: 6.8 | B100: 1024.064 | D100: 300 | E100: 150.5976471 | G100: 44.11764706 | H100: 155.44 | I100: -208.064 | J100: 816 | K100: -560 | L100: 120 | M100: 6.8
A101: 6.88 | B101: 1036.633344 | D101: 300 | E101: 150.6734512 | G101: 43.60465116 | H101: 158.8064 | I101: -266.073344 | J101: 770.56 | K101: -576 | L101: 112 | M101: 6.88
A102: 6.96 | B102: 1049.475072 | D102: 300 | E102: 150.7866483 | G102: 43.10344828 | H102: 162.2496 | I102: -325.635072 | J102: 723.84 | K102: -592 | L102: 104 | M102: 6.96
A103: 7.04 | B103: 1062.595328 | D103: 300 | E103: 150.9368364 | G103: 42.61363636 | H103: 165.7696 | I103: -386.755328 | J103: 675.84 | K103: -608 | L103: 96 | M103: 7.04
A104: 7.12 | B104: 1076.000256 | D104: 300 | E104: 151.1236315 | G104: 42.13483146 | H104: 169.3664 | I104: -449.440256 | J104: 626.56 | K104: -624 | L104: 88 | M104: 7.12
A105: 7.2 | B105: 1089.696 | D105: 300 | E105: 151.3466667 | G105: 41.66666667 | H105: 173.04 | I105: -513.696 | J105: 576 | K105: -640 | L105: 80 | M105: 7.2
A106: 7.28 | B106: 1103.688704 | D106: 300 | E106: 151.6055912 | G106: 41.20879121 | H106: 176.7904 | I106: -579.528704 | J106: 524.16 | K106: -656 | L106: 72 | M106: 7.28
A107: 7.36 | B107: 1117.984512 | D107: 300 | E107: 151.9000696 | G107: 40.76086957 | H107: 180.6176 | I107: -646.944512 | J107: 471.04 | K107: -672 | L107: 64 | M107: 7.36
A108: 7.44 | B108: 1132.589568 | D108: 300 | E108: 152.2297806 | G108: 40.32258065 | H108: 184.5216 | I108: -715.949568 | J108: 416.64 | K108: -688 | L108: 56 | M108: 7.44
A109: 7.52 | B109: 1147.510016 | D109: 300 | E109: 152.594417 | G109: 39.89361702 | H109: 188.5024 | I109: -786.550016 | J109: 360.96 | K109: -704 | L109: 48 | M109: 7.52
A110: 7.6 | B110: 1162.752 | D110: 300 | E110: 152.9936842 | G110: 39.47368421 | H110: 192.56 | I110: -858.752 | J110: 304 | K110: -720 | L110: 40 | M110: 7.6
A111: 7.68 | B111: 1178.321664 | D111: 300 | E111: 153.4273 | G111: 39.0625 | H111: 196.6944 | I111: -932.561664 | J111: 245.76 | K111: -736 | L111: 32 | M111: 7.68
A112: 7.76 | B112: 1194.225152 | D112: 300 | E112: 153.8949938 | G112: 38.65979381 | H112: 200.9056 | I112: -1007.985152 | J112: 186.24 | K112: -752 | L112: 24 | M112: 7.76
A113: 7.84 | B113: 1210.468608 | D113: 300 | E113: 154.3965061 | G113: 38.26530612 | H113: 205.1936 | I113: -1085.028608 | J113: 125.44 | K113: -768 | L113: 16 | M113: 7.84
A114: 7.92 | B114: 1227.058176 | D114: 300 | E114: 154.9315879 | G114: 37.87878788 | H114: 209.5584 | I114: -1163.698176 | J114: 63.36 | K114: -784 | L114: 8 | M114: 7.92
A115: 8 | B115: 1244 | D115: 300 | E115: 155.5 | G115: 37.5 | H115: 214 | I115: -1244 | J115: 0 | K115: -800 | L115: 0 | M115: 8
F116: =MIN(F16:F115) ->  | H116: =MIN(H16:H115) -> 83.3376 | J116: =MAX(I15:I115) -> 909.888 | K116: =MAX(J15:J115) -> 1600

Sheet Grafik4
E3: X-Werte | F3: Y-Werte
D4: Menge | E4: =BerechnungQua!G13 ->  | F4: 0
E5: =BerechnungQua!G13 ->  | F5: =BerechnungQua!J13 -> 
A14: =IF(AND(Kontrolle!D6="",Kontrolle!E6=""),"Sie haben eine lineare Kostenfunktion angegeben. Wechseln Sie zur Kontrollseite und dann zur 'linearen Kostenfunktion'.",IF(Kontrolle!D6="","","Sie haben eine kubische Kostenfunktion angegeben. Wechseln Sie zur Kontrollseite und dann zur 'kubischen Kostenfunktion'.")) -> Sie haben eine kubische Kostenfunktion angegeben. Wechseln Sie zur Kontrollseite und dann zur 'kubischen Kostenfunktion'.

Sheet Grafik5
E3: X-Werte | F3: Y-Werte
D4: Menge | E4: =BerechnungQua!G13 ->  | F4: 0
E5: =BerechnungQua!G13 ->  | F5: =BerechnungQua!H13 -> 
D6: Preis | E6: 0 | F6: =BerechnungQua!H13 -> 
E7: =BerechnungQua!G13 ->  | F7: =BerechnungQua!H13 -> 
A14: =IF(AND(Kontrolle!D6="",Kontrolle!E6=""),"Sie haben eine lineare Kostenfunktion angegeben. Wechseln Sie zur Kontrollseite und dann zur 'linearen Kostenfunktion'.",IF(Kontrolle!D6="","","Sie haben eine kubische Kostenfunktion angegeben. Wechseln Sie zur Kontrollseite und dann zur 'kubischen Kostenfunktion'.")) -> Sie haben eine kubische Kostenfunktion angegeben. Wechseln Sie zur Kontrollseite und dann zur 'kubischen Kostenfunktion'.

Sheet Grafik6
E3: X-Werte | F3: Y-Werte
D4: Menge | E4: =BerechnungQua!G13 ->  | F4: 0
E5: =BerechnungQua!G13 ->  | F5: =BerechnungQua!I13 -> 
A14: =IF(AND(Kontrolle!D6="",Kontrolle!E6=""),"Sie haben eine lineare Kostenfunktion angegeben. Wechseln Sie zur Kontrollseite und dann zur 'linearen Kostenfunktion'.",IF(Kontrolle!D6="","","Sie haben eine kubische Kostenfunktion angegeben. Wechseln Sie zur Kontrollseite und dann zur 'kubischen Kostenfunktion'.")) -> Sie haben eine kubische Kostenfunktion angegeben. Wechseln Sie zur Kontrollseite und dann zur 'kubischen Kostenfunktion'.

Sheet BerechnungKub
B1: aX3 | C1: bX2 | D1: cx | E1: d | F1: d/x | G1: Ausgabewerte | N1: Berechnung der Cournotschen Menge (kubische Kostenfunktion) | Q1: Berechnung bei kubischer Kosten- funktion (K=ax3-bx2+cx+d)
A2: K= | B2: =Kontrolle!D6 -> 2 | C2: =Kontrolle!E6 -> -20 | D2: =Kontrolle!F6 -> 150 | E2: =Kontrolle!G6 -> 300 | G2: Gewinnmaximum tabellarisch | J2: Gmax | K2: =MAX(I15:I115) -> 909.888
A3: Kv= | B3: =Kontrolle!D8 -> 2 | C3: =Kontrolle!E8 -> -20 | D3: =Kontrolle!F8 -> 150 | J3: XGmax | K3: =VLOOKUP(K2,I15:M115,5,FALSE) -> 3.6 | N3: K = ax3 - bx2 + cx + d
A4: Kf= | D4: =D2 -> 150 | J4: PGmax | K4: =VLOOKUP(K2,I15:M115,4,FALSE) -> 440 | N4: 1
A5: E1= | C5: =Kontrolle!E12 -> -100 | D5: =Kontrolle!F12 -> 800 | G5: Abweichungen der tabellarischen von der analystischen | K5: =(100%*(K2-I10))/100 -> -0.0003480007854
A6: k= | C6: =Kontrolle!E9 -> 2 | D6: =Kontrolle!F9 -> -20 | E6: =D2 -> 150 | F6: =Kontrolle!H9 -> 300 | G6: Gewinnermittlung. (analytischer Gewinn = 100%)
A7: kv= | C7: =Kontrolle!E10 -> 2 | D7: =Kontrolle!F10 -> -20 | E7: =Kontrolle!G10 -> 150 | G7: Gewinnmaximum analytisch / Cournotscher Punkt | N7: 3.581492793 | O7: -4.253478881e+27 | P7: FALSE
A8: kf= | F8: =E2 -> 300
A9: K' | C9: =Kontrolle!E11 -> 6 | D9: =Kontrolle!F11 -> -40 | E9: =Kontrolle!G11 -> 150 | G9: XGmax | H9: PGmax | I9: Gmax | J9: E | K9: K | O9: =(($D$10*$N$7)+($D$9*-1*$N$7)+$E$10-$E$9)/$C$9 -> 12.82685886
A10: E' | D10: =Kontrolle!F13 -> -200 | E10: =Kontrolle!G13 -> 800 | G10: =IF(P7=TRUE,ROUND(N7,0),N7) -> 3.581492793 | H10: =(G10*D11)+E11 -> 441.8507207 | I10: =J10-K10 -> 909.9228001 | J10: =G10*H10 -> 1582.485172 | K10: =(B2*(G10*G10*G10))+(C2*(G10*G10))+(D2*G10)+E2 -> 672.5623717 | O10: =SQRT($O$9) -> 3.581460436
A11: PAF | D11: =Kontrolle!F7 -> -100 | E11: =Kontrolle!G7 -> 800 | G11: k | H11: kv | I11: kf | J11: E' | K11: K' | O11: =$O$10/$N$7 -> 0.9999909656
A12: Xmax | B12: =Kontrolle!K12 -> 8 | G12: =(C6*(G10*G10))+(D6*(G10))+(E6)+(F6/G10) -> 187.7882801 | H12: =(C7*(G10*G10))+(D7*G10)+E7 -> 104.0243254 | I12: =F8 -> 300 | J12: =(D10*G10)+E10 -> 83.70144142 | K12: =(C9*(G10*G10))+(D9*G10)+E9 -> 83.70283204
G13: =N7 -> 3.581492793 | H13: =($N$7*$D$11)+$E$11 -> 441.8507207 | I13: =J13-K13 -> 909.9228001 | J13: =$N$7*$H$13 -> 1582.485172 | K13: =(B2*(N7*N7*N7))+C2*(N7*N7)+(D2*N7)+E2 -> 672.5623717
A14: X | B14: K | C14: K+Gmax | D14: Kf | E14: k | F14: kv | G14: kf | H14: K' | I14: E-K | J14: E | K14: E' | L14: PAF1 | M14: X
A15: 0 | B15: =($B$2*(A15*A15*A15))+($C$2*(A15*A15))+($D$2*A15)+($E$2) -> 300 | C15: =B15+$I$10 -> 1209.9228 | D15: =$E$2 -> 300 | I15: =J15-B15 -> -300 | J15: =($C$5*(A15*A15))+($D$5*A15) -> 0 | K15: =($D$10*A15)+$E$10 -> 800 | L15: =($D$11*A15)+$E$11 -> 800 | M15: 0 | Q15: =IF(AND(Kontrolle!D6="",Kontrolle!E6=""),"Sie haben eine lineare Kostenfunktion angegeben. Wechseln Sie zur Kontrollseite und dann zur 'linearen Kostenfunktion'.",IF(Kontrolle!D6="","Sie haben eine quadratische Kostenfunktion angegeben. Wechseln Sie zur Kontrollseite und dann zur 'quadratischen Kostenfunktion'.","")) -> 
A16: =$B$12/100 -> 0.08 | B16: =($B$2*(A16*A16*A16))+($C$2*(A16*A16))+($D$2*A16)+($E$2) -> 311.873024 | C16: =B16+$I$10 -> 1221.795824 | D16: =$E$2 -> 300 | E16: =B16/A16 -> 3898.4128 | F16: =C16/A16 -> 15272.4478 | G16: =$F$6/A16 -> 3750 | H16: =($C$9*(A16*A16))+($D$9*(A16))+$E$9 -> 146.8384 | I16: -248.513024 | J16: =($C$5*(A16*A16))+($D$5*A16) -> 63.36 | K16: =($D$10*A16)+$E$10 -> 784 | L16: =($D$11*A16)+$E$11 -> 792 | M16: =B12/100 -> 0.08
A17: =A16+$A$16 -> 0.16 | B17: =($B$2*(A17*A17*A17))+($C$2*(A17*A17))+($D$2*A17)+($E$2) -> 323.496192 | C17: 1233.418992 | D17: 300 | E17: 2021.8512 | F17: 7708.8687 | G17: 1875 | H17: =($C$9*(A17*A17))+($D$9*(A17))+$E$9 -> 143.7536 | I17: -198.056192 | J17: 125.44 | K17: 768 | L17: 784 | M17: =M16+$M$16 -> 0.16 | N17: Aktivieren Sie das Kontrollkästchen, wenn die Cournotsche Menge in ganzen Zahlen angegeben werden soll. (G10)
A18: =A17+$A$16 -> 0.24 | B18: 334.875648 | C18: 1244.798448 | D18: 300 | E18: 1395.3152 | F18: 5186.6602 | G18: 1250 | H18: 140.7456 | I18: -148.635648 | J18: 186.24 | K18: 752 | L18: 776 | M18: 0.24
A19: =A18+$A$16 -> 0.32 | B19: 346.017536 | C19: 1255.940336 | D19: 300 | E19: 1081.3048 | F19: 3924.81355 | G19: 937.5 | H19: 137.8144 | I19: -100.257536 | J19: 245.76 | K19: 736 | L19: 768 | M19: 0.32
A20: 0.4 | B20: 356.928 | C20: 1266.8508 | D20: 300 | E20: 892.32 | F20: 3167.127 | G20: 750 | H20: 134.96 | I20: -52.928 | J20: 304 | K20: 720 | L20: 760 | M20: 0.4
A21: 0.48 | B21: 367.613184 | C21: 1277.535984 | D21: 300 | E21: 765.8608 | F21: 2661.5333 | G21: 625 | H21: 132.1824 | I21: -6.653184 | J21: 360.96 | K21: 704 | L21: 752 | M21: 0.48 | O21: =IF(D9>0,(E10-E9)/(D9+(D10*-1)),"") -> 
A22: 0.56 | B22: 378.079232 | C22: 1288.002032 | D22: 300 | E22: 675.1414857 | F22: 2300.003629 | G22: 535.7142857 | H22: 129.4816 | I22: 38.560768 | J22: 416.64 | K22: 688 | L22: 744 | M22: 0.56 | N22: Berechnung der Cournotschen Menge durch Näherungswerte
A23: 0.64 | B23: 388.332288 | C23: 1298.255088 | D23: 300 | E23: 606.7692 | F23: 2028.523575 | G23: 468.75 | H23: 126.8576 | I23: 82.707712 | J23: 471.04 | K23: 672 | L23: 736 | M23: 0.64
A24: 0.72 | B24: 398.378496 | C24: 1308.301296 | D24: 300 | E24: 553.3034667 | F24: 1817.085133 | G24: 416.6666667 | H24: 124.3104 | I24: 125.781504 | J24: 524.16 | K24: 656 | L24: 728 | M24: 0.72 | N24: Wählen Sie eine Menge in Zelle N31. Verändern Sie diese mit dem Drehfeld jeweils um 1, bis der Wert in Zelle N33 möglichst nahe am Wert 0,0 ist. Orientierung z.B. an der tabellarisch/graphischen Ermittlung.
A25: 0.8 | B25: 408.224 | C25: 1318.1468 | D25: 300 | E25: 510.28 | F25: 1647.6835 | G25: 375 | H25: 121.84 | I25: 167.776 | J25: 576 | K25: 640 | L25: 720 | M25: 0.8 | Q25: Übliche Berechung mit p/q-Formel (führt zu etwas unübersichtlichen Zelladressierungen) J
A26: 0.88 | B26: 417.874944 | C26: 1327.797744 | D26: 300 | E26: 474.8578909 | F26: 1508.861073 | G26: 340.9090909 | H26: 119.4464 | I26: 208.685056 | J26: 626.56 | K26: 624 | L26: 712 | M26: 0.88
A27: 0.96 | B27: 427.337472 | C27: 1337.260272 | D27: 300 | E27: 445.1432 | F27: 1392.97945 | G27: 312.5 | H27: 117.1296 | I27: 248.502528 | J27: 675.84 | K27: 608 | L27: 704 | M27: 0.96
A28: 1.04 | B28: 436.617728 | C28: 1346.540528 | D28: 300 | E28: 419.8247385 | F28: 1294.750508 | G28: 288.4615385 | H28: 114.8896 | I28: 287.222272 | J28: 723.84 | K28: 592 | L28: 696 | M28: 1.04
A29: 1.12 | B29: 445.721856 | C29: 1355.644656 | D29: 300 | E29: 397.9659429 | F29: 1210.397014 | G29: 267.8571429 | H29: 112.7264 | I29: 324.838144 | J29: 770.56 | K29: 576 | L29: 688 | M29: 1.12
A30: 1.2 | B30: 454.656 | C30: 1364.5788 | D30: 300 | E30: 378.88 | F30: 1137.149 | G30: 250 | H30: 110.64 | I30: 361.344 | J30: 816 | K30: 560 | L30: 680 | M30: 1.2 | Q30: p/2 | R30: =($D$10+($D$9*-1))/$C$9/2 -> -13.33333333
A31: 1.28 | B31: 463.426304 | C31: 1373.349104 | D31: 300 | E31: 362.0518 | F31: 1072.928988 | G31: 234.375 | H31: 108.6304 | I31: 396.733696 | J31: 860.16 | K31: 544 | L31: 672 | M31: 1.28 | N31: 4 | P31: =(($D$10*$N$31)+($D$9*-1*$N$31)+$E$10-$E$9)/$C$9 -> 1.666666667 | Q31: x1 | R31: =$R$30+SQRT((($D$10+($D$9*-1))/$C$9/2)*(($D$10+($D$9*-1))/$C$9/2)+(($E$10-$E$9)/$C$9)) -> 3.581485942 | S31: =IF(R31>R32,"d","nd") -> d
A32: 1.36 | B32: 472.038912 | C32: 1381.961712 | D32: 300 | E32: 347.0874353 | F32: 1016.148318 | G32: 220.5882353 | H32: 106.6976 | I32: 431.001088 | J32: 903.04 | K32: 528 | L32: 664 | M32: 1.36 | P32: =SQRT($P$31) -> 1.290994449 | Q32: x2 | R32: =$R$30-SQRT((($D$10+($D$9*-1))/$C$9/2)*(($D$10+($D$9*-1))/$C$9/2)+(($E$10-$E$9)/$C$9)) -> -30.24815261 | S32: =IF(R32<R31,"nd","d") -> nd
A33: 1.44 | B33: 480.499968 | C33: 1390.422768 | D33: 300 | E33: 333.6805333 | F33: 965.5713667 | G33: 208.3333333 | H33: 104.8416 | I33: 464.140032 | J33: 944.64 | K33: 512 | L33: 656 | M33: 1.44 | N33: =1-P33 -> 0.6772513878 | P33: =$P$32/$N$31 -> 0.3227486122 | Q33: Xc | R33: =IF(S31="d",R31,R32) -> 3.581485942
A34: 1.52 | B34: 488.815616 | C34: 1398.738416 | D34: 300 | E34: 321.5892211 | F34: 920.2226422 | G34: 197.3684211 | H34: 103.0624 | I34: 496.144384 | J34: 984.96 | K34: 496 | L34: 648 | M34: 1.52
A35: 1.6 | B35: 496.992 | C35: 1406.9148 | D35: 300 | E35: 310.62 | F35: 879.32175 | G35: 187.5 | H35: 101.36 | I35: 527.008 | J35: 1024 | K35: 480 | L35: 640 | M35: 1.6
A36: 1.68 | B36: 505.035264 | C36: 1414.958064 | D36: 300 | E36: 300.6162286 | F36: 842.2369429 | G36: 178.5714286 | H36: 99.7344 | I36: 556.724736 | J36: 1061.76 | K36: 464 | L36: 632 | M36: 1.68
A37: 1.76 | B37: 512.951552 | C37: 1422.874352 | D37: 300 | E37: 291.4497455 | F37: 808.4513364 | G37: 170.4545455 | H37: 98.1856 | I37: 585.288448 | J37: 1098.24 | K37: 448 | L37: 624 | M37: 1.76
A38: 1.84 | B38: 520.747008 | C38: 1430.669808 | D38: 300 | E38: 283.0146783 | F38: 777.5379392 | G38: 163.0434783 | H38: 96.7136 | I38: 612.692992 | J38: 1133.44 | K38: 432 | L38: 616 | M38: 1.84
A39: 1.92 | B39: 528.427776 | C39: 1438.350576 | D39: 300 | E39: 275.2228 | F39: 749.140925 | G39: 156.25 | H39: 95.3184 | I39: 638.932224 | J39: 1167.36 | K39: 416 | L39: 608 | M39: 1.92
A40: 2 | B40: 536 | C40: 1445.9228 | D40: 300 | E40: 268 | F40: 722.9614 | G40: 150 | H40: 94 | I40: 664 | J40: 1200 | K40: 400 | L40: 600 | M40: 2
A41: 2.08 | B41: 543.469824 | C41: 1453.392624 | D41: 300 | E41: 261.2835692 | F41: 698.7464539 | G41: 144.2307692 | H41: 92.7584 | I41: 687.890176 | J41: 1231.36 | K41: 384 | L41: 592 | M41: 2.08
A42: 2.16 | B42: 550.843392 | C42: 1460.766192 | D42: 300 | E42: 255.0200889 | F42: 676.2806445 | G42: 138.8888889 | H42: 91.5936 | I42: 710.596608 | J42: 1261.44 | K42: 368 | L42: 584 | M42: 2.16
A43: 2.24 | B43: 558.126848 | C43: 1468.049648 | D43: 300 | E43: 249.1637714 | F43: 655.3793072 | G43: 133.9285714 | H43: 90.5056 | I43: 732.113152 | J43: 1290.24 | K43: 352 | L43: 576 | M43: 2.24
A44: 2.32 | B44: 565.326336 | C44: 1475.249136 | D44: 300 | E44: 243.6751448 | F44: 635.8832483 | G44: 129.3103448 | H44: 89.4944 | I44: 752.433664 | J44: 1317.76 | K44: 336 | L44: 568 | M44: 2.32
A45: 2.4 | B45: 572.448 | C45: 1482.3708 | D45: 300 | E45: 238.52 | F45: 617.6545 | G45: 125 | H45: 88.56 | I45: 771.552 | J45: 1344 | K45: 320 | L45: 560 | M45: 2.4
A46: 2.48 | B46: 579.497984 | C46: 1489.420784 | D46: 300 | E46: 233.6685419 | F46: 600.5728968 | G46: 120.9677419 | H46: 87.7024 | I46: 789.462016 | J46: 1368.96 | K46: 304 | L46: 552 | M46: 2.48
A47: 2.56 | B47: 586.482432 | C47: 1496.405232 | D47: 300 | E47: 229.0947 | F47: 584.5332938 | G47: 117.1875 | H47: 86.9216 | I47: =J47-B47 -> 806.157568 | J47: 1392.64 | K47: 288 | L47: 544 | M47: 2.56
A48: 2.64 | B48: 593.407488 | C48: 1503.330288 | D48: 300 | E48: =B48/A48 -> 224.7755636 | F48: =C48/A48 -> 569.4432909 | G48: 113.6363636 | H48: 86.2176 | I48: 821.632512 | J48: 1415.04 | K48: 272 | L48: 536 | M48: 2.64
A49: 2.72 | B49: 600.279296 | C49: 1510.202096 | D49: 300 | E49: 220.6909176 | F49: 555.2213589 | G49: 110.2941176 | H49: 85.5904 | I49: 835.880704 | J49: 1436.16 | K49: 256 | L49: 528 | M49: =M48+$M$16 -> 2.72
A50: 2.8 | B50: 607.104 | C50: 1517.0268 | D50: 300 | E50: 216.8228571 | F50: 541.7952857 | G50: 107.1428571 | H50: 85.04 | I50: 848.896 | J50: 1456 | K50: 240 | L50: 520 | M50: 2.8
A51: 2.88 | B51: 613.887744 | C51: 1523.810544 | D51: 300 | E51: 213.1554667 | F51: 529.1008834 | G51: 104.1666667 | H51: 84.5664 | I51: 860.672256 | J51: 1474.56 | K51: 224 | L51: 512 | M51: 2.88
A52: 2.96 | B52: 620.636672 | C52: 1530.559472 | D52: 300 | E52: 209.6745514 | F52: 517.0809027 | G52: 101.3513514 | H52: 84.1696 | I52: 871.203328 | J52: 1491.84 | K52: 208 | L52: 504 | M52: 2.96
A53: 3.04 | B53: 627.356928 | C53: 1537.279728 | D53: 300 | E53: 206.3674105 | F53: 505.6841211 | G53: 98.68421053 | H53: 83.8496 | I53: 880.483072 | J53: 1507.84 | K53: 192 | L53: 496 | M53: 3.04
A54: 3.12 | B54: 634.054656 | C54: 1543.977456 | D54: 300 | E54: 203.2226462 | F54: 494.8645693 | G54: 96.15384615 | H54: 83.6064 | I54: 888.505344 | J54: 1522.56 | K54: 176 | L54: 488 | M54: 3.12
A55: 3.2 | B55: 640.736 | C55: 1550.6588 | D55: 300 | E55: 200.23 | F55: 484.580875 | G55: 93.75 | H55: 83.44 | I55: 895.264 | J55: 1536 | K55: 160 | L55: 480 | M55: 3.2
A56: 3.28 | B56: 647.407104 | C56: 1557.329904 | D56: 300 | E56: 197.3802146 | F56: 474.7957025 | G56: 91.46341463 | H56: 83.3504 | I56: 900.752896 | J56: 1548.16 | K56: 144 | L56: 472 | M56: 3.28
A57: 3.36 | B57: 654.074112 | C57: 1563.996912 | D57: 300 | E57: 194.6649143 | F57: 465.4752715 | G57: 89.28571429 | H57: 83.3376 | I57: 904.965888 | J57: 1559.04 | K57: 128 | L57: 464 | M57: 3.36
A58: 3.44 | B58: 660.743168 | C58: 1570.665968 | D58: 300 | E58: 192.0765023 | F58: 456.5889442 | G58: 87.20930233 | H58: 83.4016 | I58: 907.896832 | J58: 1568.64 | K58: 112 | L58: 456 | M58: 3.44
A59: 3.52 | B59: 667.420416 | C59: 1577.343216 | D59: 300 | E59: 189.6080727 | F59: 448.1088682 | G59: 85.22727273 | H59: 83.5424 | I59: 909.539584 | J59: 1576.96 | K59: 96 | L59: 448 | M59: 3.52
A60: 3.6 | B60: 674.112 | C60: 1584.0348 | D60: 300 | E60: 187.2533333 | F60: 440.0096667 | G60: 83.33333333 | H60: 83.76 | I60: 909.888 | J60: 1584 | K60: 80 | L60: 440 | M60: 3.6
A61: 3.68 | B61: 680.824064 | C61: 1590.746864 | D61: 300 | E61: 185.0065391 | F61: 432.2681696 | G61: 81.52173913 | H61: 84.0544 | I61: 908.935936 | J61: 1589.76 | K61: 64 | L61: 432 | M61: 3.68
A62: 3.76 | B62: 687.562752 | C62: 1597.485552 | D62: 300 | E62: 182.862434 | F62: 424.8631787 | G62: 79.78723404 | H62: 84.4256 | I62: 906.677248 | J62: 1594.24 | K62: 48 | L62: 424 | M62: 3.76
A63: 3.84 | B63: 694.334208 | C63: 1604.257008 | D63: 300 | E63: 180.8162 | F63: 417.7752625 | G63: 78.125 | H63: 84.8736 | I63: 903.105792 | J63: 1597.44 | K63: 32 | L63: 416 | M63: 3.84
A64: 3.92 | B64: 701.144576 | C64: 1611.067376 | D64: 300 | E64: 178.8634122 | F64: 410.9865755 | G64: 76.53061224 | H64: 85.3984 | I64: 898.215424 | J64: 1599.36 | K64: 16 | L64: 408 | M64: 3.92
A65: 4 | B65: 708 | C65: 1617.9228 | D65: 300 | E65: 177 | F65: 404.4807 | G65: 75 | H65: 86 | I65: 892 | J65: 1600 | K65: 0 | L65: 400 | M65: 4
A66: 4.08 | B66: 714.906624 | C66: 1624.829424 | D66: 300 | E66: 175.2222118 | F66: 398.2425059 | G66: 73.52941176 | H66: 86.6784 | I66: 884.453376 | J66: 1599.36 | K66: -16 | L66: 392 | M66: 4.08
A67: 4.16 | B67: 721.870592 | C67: 1631.793392 | D67: 300 | E67: 173.5265846 | F67: 392.2580269 | G67: 72.11538462 | H67: 87.4336 | I67: 875.569408 | J67: 1597.44 | K67: -32 | L67: 384 | M67: 4.16
A68: 4.24 | B68: 728.898048 | C68: 1638.820848 | D68: 300 | E68: 171.909917 | F68: 386.514351 | G68: 70.75471698 | H68: 88.2656 | I68: 865.341952 | J68: 1594.24 | K68: -48 | L68: 376 | M68: 4.24
A69: 4.32 | B69: 735.995136 | C69: 1645.917936 | D69: 300 | E69: 170.3692444 | F69: 380.9995222 | G69: 69.44444444 | H69: 89.1744 | I69: 853.764864 | J69: 1589.76 | K69: -64 | L69: 368 | M69: 4.32
A70: 4.4 | B70: 743.168 | C70: 1653.0908 | D70: 300 | E70: 168.9018182 | F70: 375.7024546 | G70: 68.18181818 | H70: 90.16 | I70: 840.832 | J70: 1584 | K70: -80 | L70: 360 | M70: 4.4
A71: 4.48 | B71: 750.422784 | C71: 1660.345584 | D71: 300 | E71: 167.5050857 | F71: 370.6128536 | G71: 66.96428571 | H71: 91.2224 | I71: 826.537216 | J71: 1576.96 | K71: -96 | L71: 352 | M71: 4.48
A72: 4.56 | B72: 757.765632 | C72: 1667.688432 | D72: 300 | E72: 166.1766737 | F72: 365.7211474 | G72: 65.78947368 | H72: 92.3616 | I72: 810.874368 | J72: 1568.64 | K72: -112 | L72: 344 | M72: 4.56
A73: 4.64 | B73: 765.202688 | C73: 1675.125488 | D73: 300 | E73: 164.9143724 | F73: 361.0184242 | G73: 64.65517241 | H73: 93.5776 | I73: 793.837312 | J73: 1559.04 | K73: -128 | L73: 336 | M73: 4.64
A74: 4.72 | B74: 772.740096 | C74: 1682.662896 | D74: 300 | E74: 163.716122 | F74: 356.4963763 | G74: 63.55932203 | H74: 94.8704 | I74: 775.419904 | J74: 1548.16 | K74: -144 | L74: 328 | M74: 4.72
A75: 4.8 | B75: 780.384 | C75: 1690.3068 | D75: 300 | E75: 162.58 | F75: 352.14725 | G75: 62.5 | H75: 96.24 | I75: 755.616 | J75: 1536 | K75: -160 | L75: 320 | M75: 4.8
A76: 4.88 | B76: 788.140544 | C76: 1698.063344 | D76: 300 | E76: 161.5042098 | F76: 347.9638 | G76: 61.47540984 | H76: 97.6864 | I76: 734.419456 | J76: 1522.56 | K76: -176 | L76: 312 | M76: 4.88
A77: 4.96 | B77: 796.015872 | C77: 1705.938672 | D77: 300 | E77: 160.487071 | F77: 343.9392484 | G77: 60.48387097 | H77: 99.2096 | I77: 711.824128 | J77: 1507.84 | K77: -192 | L77: 304 | M77: 4.96
A78: 5.04 | B78: 804.016128 | C78: 1713.938928 | D78: 300 | E78: 159.5270095 | F78: 340.0672476 | G78: 59.52380952 | H78: 100.8096 | I78: 687.823872 | J78: 1491.84 | K78: -208 | L78: 296 | M78: 5.04
A79: 5.12 | B79: 812.147456 | C79: 1722.070256 | D79: 300 | E79: 158.62255 | F79: 336.3418469 | G79: 58.59375 | H79: 102.4864 | I79: =J79-B79 -> 662.412544 | J79: 1474.56 | K79: -224 | L79: 288 | M79: 5.12
A80: 5.2 | B80: 820.416 | C80: =B80+$I$10 -> 1730.3388 | D80: =$E$2 -> 300 | E80: =B80/A80 -> 157.7723077 | F80: =C80/A80 -> 332.7574616 | G80: =$F$6/A80 -> 57.69230769 | H80: 104.24 | I80: 635.584 | J80: =($C$5*(A80*A80))+($D$5*A80) -> 1456 | K80: =($D$10*A80)+$E$10 -> -240 | L80: =($D$11*A80)+$E$11 -> 280 | M80: 5.2
A81: 5.28 | B81: =($B$2*(A81*A81*A81))+($C$2*(A81*A81))+($D$2*A81)+($E$2) -> 828.827904 | C81: 1738.750704 | D81: 300 | E81: 156.9749818 | F81: 329.3088455 | G81: 56.81818182 | H81: =($C$9*(A81*A81))+($D$9*(A81))+$E$9 -> 106.0704 | I81: 607.332096 | J81: 1436.16 | K81: -256 | L81: 272 | M81: =M80+$M$16 -> 5.28
A82: 5.36 | B82: 837.389312 | C82: 1747.312112 | D82: 300 | E82: 156.2293493 | F82: 325.9910657 | G82: 55.97014925 | H82: 107.9776 | I82: 577.650688 | J82: 1415.04 | K82: -272 | L82: 264 | M82: 5.36
A83: =A82+$A$16 -> 5.44 | B83: 846.106368 | C83: 1756.029168 | D83: 300 | E83: 155.5342588 | F83: 322.7994794 | G83: 55.14705882 | H83: 109.9616 | I83: 546.533632 | J83: 1392.64 | K83: -288 | L83: 256 | M83: 5.44
A84: 5.52 | B84: 854.985216 | C84: 1764.908016 | D84: 300 | E84: 154.8886261 | F84: 319.7297131 | G84: 54.34782609 | H84: 112.0224 | I84: 513.974784 | J84: 1368.96 | K84: -304 | L84: 248 | M84: 5.52
A85: 5.6 | B85: 864.032 | C85: 1773.9548 | D85: 300 | E85: 154.2914286 | F85: 316.7776429 | G85: 53.57142857 | H85: 114.16 | I85: 479.968 | J85: 1344 | K85: -320 | L85: 240 | M85: 5.6
A86: 5.68 | B86: 873.252864 | C86: 1783.175664 | D86: 300 | E86: 153.7417014 | F86: 313.9393775 | G86: 52.81690141 | H86: 116.3744 | I86: 444.507136 | J86: 1317.76 | K86: -336 | L86: 232 | M86: 5.68
A87: 5.76 | B87: 882.653952 | C87: 1792.576752 | D87: 300 | E87: 153.2385333 | F87: 311.2112417 | G87: 52.08333333 | H87: 118.6656 | I87: 407.586048 | J87: 1290.24 | K87: -352 | L87: 224 | M87: 5.76
A88: 5.84 | B88: 892.241408 | C88: 1802.164208 | D88: 300 | E88: 152.781063 | F88: 308.5897617 | G88: 51.36986301 | H88: 121.0336 | I88: 369.198592 | J88: 1261.44 | K88: -368 | L88: 216 | M88: 5.84
A89: 5.92 | B89: 902.021376 | C89: 1811.944176 | D89: 300 | E89: 152.3684757 | F89: 306.0716514 | G89: 50.67567568 | H89: 123.4784 | I89: 329.338624 | J89: 1231.36 | K89: -384 | L89: 208 | M89: 5.92
A90: 6 | B90: 912 | C90: 1821.9228 | D90: 300 | E90: 152 | F90: 303.6538 | G90: 50 | H90: 126 | I90: 288 | J90: 1200 | K90: -400 | L90: 200 | M90: 6
A91: 6.08 | B91: 922.183424 | C91: 1832.106224 | D91: 300 | E91: 151.6749053 | F91: 301.3332605 | G91: 49.34210526 | H91: 128.5984 | I91: 245.176576 | J91: 1167.36 | K91: -416 | L91: 192 | M91: 6.08
A92: 6.16 | B92: 932.577792 | C92: 1842.500592 | D92: 300 | E92: 151.3924987 | F92: 299.107239 | G92: 48.7012987 | H92: 131.2736 | I92: 200.862208 | J92: 1133.44 | K92: -432 | L92: 184 | M92: 6.16
A93: 6.24 | B93: 943.189248 | C93: 1853.112048 | D93: 300 | E93: 151.1521231 | F93: 296.9730846 | G93: 48.07692308 | H93: 134.0256 | I93: 155.050752 | J93: 1098.24 | K93: -448 | L93: 176 | M93: 6.24
A94: 6.32 | B94: 954.023936 | C94: 1863.946736 | D94: 300 | E94: 150.9531544 | F94: 294.928281 | G94: 47.46835443 | H94: 136.8544 | I94: 107.736064 | J94: 1061.76 | K94: -464 | L94: 168 | M94: 6.32
A95: 6.4 | B95: 965.088 | C95: 1875.0108 | D95: 300 | E95: 150.795 | F95: 292.9704375 | G95: 46.875 | H95: 139.76 | I95: 58.912 | J95: 1024 | K95: -480 | L95: 160 | M95: 6.4
A96: 6.48 | B96: 976.387584 | C96: 1886.310384 | D96: 300 | E96: 150.6770963 | F96: 291.0972815 | G96: 46.2962963 | H96: 142.7424 | I96: 8.572416 | J96: 984.96 | K96: -496 | L96: 152 | M96: 6.48
A97: 6.56 | B97: 987.928832 | C97: 1897.851632 | D97: 300 | E97: 150.5989073 | F97: 289.3066512 | G97: 45.73170732 | H97: 145.8016 | I97: -43.288832 | J97: 944.64 | K97: -512 | L97: 144 | M97: 6.56
A98: 6.64 | B98: 999.717888 | C98: 1909.640688 | D98: 300 | E98: 150.5599229 | F98: 287.5964892 | G98: 45.18072289 | H98: 148.9376 | I98: -96.677888 | J98: 903.04 | K98: -528 | L98: 136 | M98: 6.64
A99: 6.72 | B99: 1011.760896 | C99: 1921.683696 | D99: 300 | E99: 150.5596571 | F99: 285.9648357 | G99: 44.64285714 | H99: 152.1504 | I99: -151.600896 | J99: 860.16 | K99: -544 | L99: 128 | M99: 6.72
A100: 6.8 | B100: 1024.064 | C100: 1933.9868 | D100: 300 | E100: 150.5976471 | F100: 284.4098235 | G100: 44.11764706 | H100: 155.44 | I100: -208.064 | J100: 816 | K100: -560 | L100: 120 | M100: 6.8
A101: 6.88 | B101: 1036.633344 | C101: 1946.556144 | D101: 300 | E101: 150.6734512 | F101: 282.9296721 | G101: 43.60465116 | H101: 158.8064 | I101: -266.073344 | J101: 770.56 | K101: -576 | L101: 112 | M101: 6.88
A102: 6.96 | B102: 1049.475072 | C102: 1959.397872 | D102: 300 | E102: 150.7866483 | F102: 281.5226828 | G102: 43.10344828 | H102: 162.2496 | I102: -325.635072 | J102: 723.84 | K102: -592 | L102: 104 | M102: 6.96
A103: 7.04 | B103: 1062.595328 | C103: 1972.518128 | D103: 300 | E103: 150.9368364 | F103: 280.1872341 | G103: 42.61363636 | H103: 165.7696 | I103: -386.755328 | J103: 675.84 | K103: -608 | L103: 96 | M103: 7.04
A104: 7.12 | B104: 1076.000256 | C104: 1985.923056 | D104: 300 | E104: 151.1236315 | F104: 278.9217775 | G104: 42.13483146 | H104: 169.3664 | I104: -449.440256 | J104: 626.56 | K104: -624 | L104: 88 | M104: 7.12
A105: 7.2 | B105: 1089.696 | C105: 1999.6188 | D105: 300 | E105: 151.3466667 | F105: 277.7248333 | G105: 41.66666667 | H105: 173.04 | I105: -513.696 | J105: 576 | K105: -640 | L105: 80 | M105: 7.2
A106: 7.28 | B106: 1103.688704 | C106: 2013.611504 | D106: 300 | E106: 151.6055912 | F106: 276.5949868 | G106: 41.20879121 | H106: 176.7904 | I106: -579.528704 | J106: 524.16 | K106: -656 | L106: 72 | M106: 7.28
A107: 7.36 | B107: 1117.984512 | C107: 2027.907312 | D107: 300 | E107: 151.9000696 | F107: 275.5308848 | G107: 40.76086957 | H107: 180.6176 | I107: -646.944512 | J107: 471.04 | K107: -672 | L107: 64 | M107: 7.36
A108: 7.44 | B108: 1132.589568 | C108: 2042.512368 | D108: 300 | E108: 152.2297806 | F108: 274.5312323 | G108: 40.32258065 | H108: 184.5216 | I108: -715.949568 | J108: 416.64 | K108: -688 | L108: 56 | M108: 7.44
A109: 7.52 | B109: 1147.510016 | C109: 2057.432816 | D109: 300 | E109: 152.594417 | F109: 273.5947894 | G109: 39.89361702 | H109: 188.5024 | I109: -786.550016 | J109: 360.96 | K109: -704 | L109: 48 | M109: 7.52
A110: 7.6 | B110: 1162.752 | C110: 2072.6748 | D110: 300 | E110: 152.9936842 | F110: 272.7203684 | G110: 39.47368421 | H110: 192.56 | I110: -858.752 | J110: 304 | K110: -720 | L110: 40 | M110: 7.6
A111: 7.68 | B111: 1178.321664 | C111: 2088.244464 | D111: 300 | E111: 153.4273 | F111: 271.9068313 | G111: 39.0625 | H111: 196.6944 | I111: =J111-B111 -> -932.561664 | J111: 245.76 | K111: -736 | L111: 32 | M111: 7.68
A112: 7.76 | B112: 1194.225152 | C112: 2104.147952 | D112: 300 | E112: 153.8949938 | F112: 271.1530866 | G112: 38.65979381 | H112: 200.9056 | I112: -1007.985152 | J112: 186.24 | K112: -752 | L112: 24 | M112: 7.76
A113: 7.84 | B113: 1210.468608 | C113: 2120.391408 | D113: 300 | E113: 154.3965061 | F113: 270.4580878 | G113: 38.26530612 | H113: 205.1936 | I113: -1085.028608 | J113: 125.44 | K113: -768 | L113: 16 | M113: 7.84
A114: 7.92 | B114: 1227.058176 | C114: 2136.980976 | D114: 300 | E114: 154.9315879 | F114: 269.8208303 | G114: 37.87878788 | H114: 209.5584 | I114: -1163.698176 | J114: 63.36 | K114: -784 | L114: 8 | M114: 7.92
A115: 8 | B115: 1244 | C115: 2153.9228 | D115: 300 | E115: 155.5 | F115: 269.24035 | G115: 37.5 | H115: 214 | I115: -1244 | J115: 0 | K115: -800 | L115: 0 | M115: 8
F116: =MIN(F16:F115) -> 269.24035 | H116: =MIN(H16:H115) -> 83.3376 | J116: =MAX(I15:I115) -> 909.888 | K116: =MAX(J15:J115) -> 1600

Sheet Grafik7
F3: X-Werte | G3: Y-Werte
E4: Menge | F4: =BerechnungKub!G13 -> 3.581492793 | G4: 0
F5: =BerechnungKub!G13 -> 3.581492793 | G5: =BerechnungKub!J13 -> 1582.485172
A14: =IF(AND(Kontrolle!D6="",Kontrolle!E6=""),"Sie haben eine lineare Kostenfunktion angegeben. Wechseln Sie zur Kontrollseite und dann zur 'linearen Kostenfunktion'.",IF(Kontrolle!D6="","Sie haben eine quadratische Kostenfunktion angegeben. Wechseln Sie zur Kontrollseite und dann zur 'quadratischen Kostenfunktion'.","")) -> 

Sheet Grafik8
F3: X-Werte | G3: Y-Werte
E4: Menge | F4: =BerechnungKub!G13 -> 3.581492793 | G4: 0
F5: =BerechnungKub!G13 -> 3.581492793 | G5: =BerechnungKub!H13 -> 441.8507207
E6: Preis | F6: 0 | G6: =BerechnungKub!H13 -> 441.8507207
F7: =BerechnungKub!G13 -> 3.581492793 | G7: =BerechnungKub!H13 -> 441.8507207
A14: =IF(AND(Kontrolle!D6="",Kontrolle!E6=""),"Sie haben eine lineare Kostenfunktion angegeben. Wechseln Sie zur Kontrollseite und dann zur 'linearen Kostenfunktion'.",IF(Kontrolle!D6="","Sie haben eine quadratische Kostenfunktion angegeben. Wechseln Sie zur Kontrollseite und dann zur 'quadratischen Kostenfunktion'.","")) -> 

Sheet Grafik9
F2: X-Werte | G2: Y-Werte
E3: Menge | F3: =BerechnungKub!G13 -> 3.581492793 | G3: 0
F4: =BerechnungKub!G13 -> 3.581492793 | G4: =BerechnungKub!I13 -> 909.9228001
A14: =IF(AND(Kontrolle!D6="",Kontrolle!E6=""),"Sie haben eine lineare Kostenfunktion angegeben. Wechseln Sie zur Kontrollseite und dann zur 'linearen Kostenfunktion'.",IF(Kontrolle!D6="","Sie haben eine quadratische Kostenfunktion angegeben. Wechseln Sie zur Kontrollseite und dann zur 'quadratischen Kostenfunktion'.","")) -> 

Sheet Funktionen
B2: Aufgabe 1 | F2: Aufgabe 2 | J2: Aufgabe 3 | N2: 1/25 | O2: =1/P2 -> 0.04 | P2: 25
A3: Funktion | B3: aX3 | C3: bX2 | D3: cX | E3: d | F3: aX3 | G3: bX2 | H3: cX | I3: d | J3: aX3 | K3: bX2 | L3: cX | M3: d | N3: 1/75 | O3: =1/P3 -> 0.01333333333 | P3: 75
A4: K | D4: 300 | E4: 10000 | H4: 4 | I4: 5100 | L4: 4 | M4: 5100 | N4: 1/125 | O4: 0.008 | P4: 125
A5: PAF | D5: -15 | E5: 1200 | H5: -0.00125 | I5: 15 | L5: -0.01 | M5: 22 | N5: 1/40 | O5: 0.025 | P5: 40
N6: 1/60 | O6: 0.01666666667 | P6: 60
B7: Aufgabe 4 | F7: Aufgabe 5 | J7: Aufgabe 6 | N7: 1/80 | O7: 0.0125 | P7: 80
A8: Funktion | B8: aX3 | C8: bX2 | D8: cX | E8: d | F8: aX3 | G8: bX2 | H8: cX | I8: d | J8: aX3 | K8: bX2 | L8: cX | M8: d | N8: 1/90 | O8: 0.01111111111 | P8: 90
A9: K | D9: 4 | E9: 5100 | H9: 2 | I9: 2450 | L9: 14 | M9: 5000 | N9: 1/20 | O9: 0.05 | P9: 20
A10: PAF | D10: -0.002 | E10: 12 | H10: -0.45 | I10: 92 | L10: -0.2 | M10: 100 | N10: 1/30 | O10: 0.03333333333 | P10: 30
N11: 1/300 | O11: 0.003333333333 | P11: 300
B12: Aufgabe 7 | F12: Aufgabe 8 | J12: Aufgabe 9 | N12: 1/125 | O12: 0.004444444444 | P12: 225
A13: Funktion | B13: aX3 | C13: bX2 | D13: cX | E13: d | F13: aX3 | G13: bX2 | H13: cX | I13: d | J13: aX3 | K13: bX2 | L13: cX | M13: d | N13: 1/45 | O13: 0.02222222222 | P13: 45
A14: K | D14: 14 | E14: 5000 | H14: 4 | I14: 2950 | L14: 6.8 | M14: 580 | N14: 1/150 | O14: 0.006666666667 | P14: 150
A15: PAF | D15: -0.5 | E15: 120 | H15: -0.355 | I15: 85 | L15: -1.15 | M15: 85 | N15: 1/250 | O15: 0.004 | P15: 250
N16: 1/15 | O16: 0.06666666667 | P16: 15
B17: Aufgabe 10 | F17: Aufgabe 11 | J17: Aufgabe 12 | N17: 1/8 | O17: 0.125 | P17: 8
A18: Funktion | B18: aX3 | C18: bX2 | D18: cX | E18: d | F18: aX3 | G18: bX2 | H18: cX | I18: d | J18: aX3 | K18: bX2 | L18: cX | M18: d | N18: 1/16 | O18: 0.0625 | P18: 16
A19: K | D19: 9 | E19: 3250 | H19: 9 | I19: 3250 | L19: 9 | M19: 3250 | N19: 1/32 | O19: 0.03125 | P19: 32
A20: PAF | D20: -0.1985 | E20: 100 | H20: -0.5015 | I20: 120 | L20: -0.1055 | M20: 60 | N20: 1/64 | O20: 0.015625 | P20: 64
N21: 1/500 | O21: 0.002 | P21: 500
B22: Aufgabe 13 | F22: Aufgabe 14 | J22: Aufgabe 15
A23: Funktion | B23: aX3 | C23: bX2 | D23: cX | E23: d | F23: aX3 | G23: bX2 | H23: cX | I23: d | J23: aX3 | K23: bX2 | L23: cX | M23: d
A24: K | D24: 5.8 | E24: 1900 | H24: 5.8 | I24: 1900 | L24: 5.8 | M24: 1200
A25: PAF | D25: -0.45 | E25: 92 | H25: -1.25 | I25: 125 | L25: -0.3 | M25: 55
B27: Aufgabe 16 | F27: Aufgabe 17 | J27: Aufgabe 18
A28: Funktion | B28: aX3 | C28: bX2 | D28: cX | E28: d | F28: aX3 | G28: bX2 | H28: cX | I28: d | J28: aX3 | K28: bX2 | L28: cX | M28: d
A29: K | D29: 89 | E29: 29950 | H29: 89 | I29: 29950 | L29: 89 | M29: 29950
A30: PAF | D30: -2.2 | E30: 920 | H30: -4.4 | I30: 1100 | L30: -3.1 | M30: 925
B32: Aufgabe 19 | F32: Aufgabe 20 | J32: Aufgabe 21
A33: Funktion | B33: aX3 | C33: bX2 | D33: cX | E33: d | F33: aX3 | G33: bX2 | H33: cX | I33: d | J33: aX3 | K33: bX2 | L33: cX | M33: d
A34: K | D34: 6 | E34: 50 | H34: 12 | I34: 5100 | L34: 12 | M34: 5100
A35: PAF | D35: -25 | E35: 150 | H35: -0.5 | I35: 190 | L35: -0.25 | M35: 120
B37: Aufgabe 22 | F37: Aufgabe 23 | J37: Aufgabe 24
A38: Funktion | B38: aX3 | C38: bX2 | D38: cX | E38: d | F38: aX3 | G38: bX2 | H38: cX | I38: d | J38: aX3 | K38: bX2 | L38: cX | M38: d
A39: K | D39: 40 | E39: 2950 | H39: 40 | I39: 75500 | L39: 20 | M39: 20000
A40: PAF | D40: -0.125 | E40: 92 | H40: -0.125 | I40: 300 | L40: -0.00333 | M40: 40
B42: Aufgabe 25 | F42: Aufgabe 26 | J42: Aufgabe 27
A43: Funktion | B43: aX3 | C43: bX2 | D43: cX | E43: d | F43: aX3 | G43: bX2 | H43: cX | I43: d | J43: aX3 | K43: bX2 | L43: cX | M43: d
A44: K | B44: 0.1 | C44: -2 | D44: 15 | E44: 10 | F44: 1.5 | G44: -12 | H44: 60 | I44: 50 | J44: 0.333333333 | K44: -10 | L44: 150 | M44: 500
A45: PAF | D45: -0.8 | E45: 16 | H45: -25 | I45: 150 | L45: -15 | M45: 400
B47: Aufgabe 28 | F47: Aufgabe 29 | J47: Aufgabe 30
A48: Funktion | B48: aX3 | C48: bX2 | D48: cX | E48: d | F48: aX3 | G48: bX2 | H48: cX | I48: d | J48: aX3 | K48: bX2 | L48: cX | M48: d
A49: K | B49: 0.5 | C49: -5 | D49: 20 | E49: 50 | F49: 5 | G49: -50 | H49: 250 | I49: 200 | J49: 0.038 | K49: -8.04 | L49: 824.45 | M49: 6000
A50: PAF | D50: -10 | E50: 100 | H50: -100 | I50: 800 | L50: -6 | M50: 1200
B52: Aufgabe 31 | F52: Aufgabe 32 | J52: Aufgabe 33
A53: Funktion | B53: aX3 | C53: bX2 | D53: cX | E53: d | F53: aX3 | G53: bX2 | H53: cX | I53: d | J53: aX3 | K53: bX2 | L53: cX | M53: d
A54: K | B54: 0.083 | C54: -8.4 | D54: 790 | E54: 5900 | F54: 0.25 | G54: -1.5 | H54: 20 | I54: 100 | J54: 4 | K54: -50 | L54: 240 | M54: 680
A55: PAF | D55: -16 | E55: 1500 | H55: -10 | I55: 120 | L55: -90 | M55: 900
B57: Aufgabe 34 | F57: Aufgabe 35 | J57: Aufgabe 36
A58: Funktion | B58: aX3 | C58: bX2 | D58: cX | E58: d | F58: aX3 | G58: bX2 | H58: cX | I58: d | J58: aX3 | K58: bX2 | L58: cX | M58: d
A59: K | B59: 3 | C59: -5 | D59: 50 | E59: 500 | F59: 0.55 | G59: -4.5 | H59: 25 | I59: 60 | J59: 0.001 | K59: -0.5 | L59: 90 | M59: 720
A60: PAF | D60: -90 | E60: 600 | H60: -9 | I60: 90 | L60: -0.18 | M60: 90
B62: Aufgabe 37 | F62: Aufgabe 38 | J62: Aufgabe 39
A63: Funktion | B63: aX3 | C63: bX2 | D63: cX | E63: d | F63: aX3 | G63: bX2 | H63: cX | I63: d | J63: aX3 | K63: bX2 | L63: cX | M63: d
A64: K | D64: 0.5 | E64: 3 | F64: 0.1 | G64: -5.3 | H64: 120 | I64: 20 | J64: 0.01 | K64: -1.3 | L64: 70 | M64: 200
A65: PAF | D65: -0.2 | E65: 4 | H65: -3 | I65: 120 | L65: -0.6 | M65: 80
B67: Aufgabe 40 | F67: Aufgabe 41 | J67: Aufgabe 42
A68: Funktion | B68: aX3 | C68: bX2 | D68: cX | E68: d | F68: aX3 | G68: bX2 | H68: cX | I68: d | J68: aX3 | K68: bX2 | L68: cX | M68: d
A69: K | D69: 2000 | E69: 10000 | F69: 0.0033 | G69: -0.25 | H69: 10 | I69: 1016 | K69: 0.5 | L69: 2 | M69: 50
A70: PAF | D70: -20 | E70: 7500 | H70: -0.5 | I70: 60 | L70: -3 | M70: 30
B72: Aufgabe 43 | F72: Aufgabe 44 | J72: Aufgabe 45
A73: Funktion | B73: aX3 | C73: bX2 | D73: cX | E73: d | F73: aX3 | G73: bX2 | H73: cX | I73: d | J73: aX3 | K73: bX2 | L73: cX | M73: d
A74: K | C74: 0.666667 | D74: 10 | E74: 10 | F74: 0.011 | G74: -1.4 | H74: 60 | I74: 100 | J74: 2 | K74: -20 | L74: 150 | M74: 300
A75: PAF | D75: -3 | E75: 30 | H75: -0.6 | I75: 80 | L75: -100 | M75: 800
B77: Aufgabe 46 | F77: Aufgabe 47 | J77: Aufgabe 48
A78: Funktion | B78: aX3 | C78: bX2 | D78: cX | E78: d | F78: aX3 | G78: bX2 | H78: cX | I78: d | J78: aX3 | K78: bX2 | L78: cX | M78: d
A79: K | B79: 0.5 | C79: -4 | D79: 12 | E79: 4 | F79: 1.5 | G79: -30 | H79: 450 | I79: 600 | J79: 4 | K79: -60 | L79: 400 | M79: 1000
A80: PAF | D80: -1.5 | E80: 12 | H80: -50 | I80: 1000 | L80: -40 | M80: 800
B82: Aufgabe 49 | F82: Aufgabe 50 | J82: Aufgabe 51
A83: Funktion | B83: aX3 | C83: bX2 | D83: cX | E83: d | F83: aX3 | G83: bX2 | H83: cX | I83: d | J83: aX3 | K83: bX2 | L83: cX | M83: d
A84: K | C84: 2 | D84: 20 | E84: 24000 | H84: 10 | I84: 50 | J84: 0.333333333 | K84: -3 | L84: 10 | M84: 20
A85: PAF | D85: -12 | E85: 1560 | H85: -2 | I85: 300 | L85: -1 | M85: 22
B87: Aufgabe 52 | F87: Aufgabe 53 | J87: Aufgabe 54
A88: Funktion | B88: aX3 | C88: bX2 | D88: cX | E88: d | F88: aX3 | G88: bX2 | H88: cX | I88: d | J88: aX3 | K88: bX2 | L88: cX | M88: d
A89: K | D89: 16 | E89: 792 | H89: 10 | I89: 50 | J89: 0.009 | K89: -1.25 | L89: 80 | M89: 300
A90: PAF | D90: -2 | E90: 160 | H90: -2 | I90: 300 | L90: -0.6 | M90: 80
B92: Aufgabe 52 | F92: Aufgabe 53 | J92: Aufgabe 54
A93: Funktion | B93: aX3 | C93: bX2 | D93: cX | E93: d | F93: aX3 | G93: bX2 | H93: cX | I93: d | J93: aX3 | K93: bX2 | L93: cX | M93: d
A94: K | D94: 10 | E94: 5000
A95: PAF | D95: -0.25 | E95: 150
